Cogmind - Beta 13 @@@ ROGUE MODE // 2024.04.21 @ 16:58:15 Player: Phosphorus Result: Establishing Free Derelict Territories! Performance ------------- Evolutions (9) 4500 Regions Visited (41) 8200 Robots Destroyed (506) 2530 Value Destroyed (12066) 12066 Prototype IDs (132) 2640 Alien Tech Used (1) 200 Bonus (35562) 35562 TOTAL SCORE: 65698 Bonus ------- High Alert Combat Kills 1584 Follower Combat Kills 2697 Entered Garrisons 200 Network Hubs Disabled 800 Aligned with FarCom 300 Met Data Miner 300 Acquired ECA 300 Met Zhirov 300 Met Warlord at Base 500 MAIN.C Attacked Warlord 500 Warlord Defense Kills 290 Built Enhanced Grunts 300 A7 Reached Mainframe 300 Met Warlord at Research 2000 Destroyed MAIN.C Guards 500 Met MAIN.C 5000 Hacked MAIN.C 300 Destroyed MAIN.C Shell 5000 Destroyed MAIN.C 10000 Met Warlord at Command 2000 Win 3000 Friendly Fire -609 Cogmind --------- Core Integrity 1454/1600 Matter 97/300 Energy 58/100 System Corruption 18% Temperature Hot (249) Movement Flying (29) Location Free Derelict Territories Parts ------- > --- POWER (1) -------- Improved Fusion Compressor > --- PROPULSION (8) --- Cooled Nuclear Pulse Thruster Cooled Field Propulsion Drive Electron Diverter Impulse Thruster Array > --- UTILITY (14) ----- Experimental Power Amplifier Large Storage Unit Advanced Quantum Shading Machine Experimental Melee Analysis Suite Experimental Melee Analysis Suite Experimental Melee Analysis Suite Core Analyzer Experimental Armor Integrity Analyzer Femtoactuators Advanced Force Booster Advanced Reaction Control System Experimental Phase Shifter Centrium Medium Armor Plating Graphene Brace > --- WEAPON (2) ------- Advanced Datajack Plasma Lance > --- INVENTORY (15) --- Improved Fusion Compressor Improved Fusion Compressor Electron Diverter Experimental Energy Well (600) Improved Matter Compressor (300) Centrium Medium Armor Plating Advanced Trap Extractor (0/8) Transdimensional Reconstructor Advanced Datajack Plasma Lance Plasma Lance Peak State ------------ > --- POWER ------------ Improved Fusion Compressor > --- PROPULSION ------- Cooled Field Propulsion Drive Electron Diverter Electron Diverter Electron Diverter Impulse Thruster Array Impulse Thruster Array > --- UTILITY ---------- Experimental Power Amplifier High-capacity Storage Unit Advanced Quantum Shading Machine Experimental Melee Analysis Suite Experimental Melee Analysis Suite Core Analyzer Experimental Armor Integrity Analyzer Femtoactuators Advanced Reaction Control System Experimental Phase Shifter Experimental Utility Shielding Centrium Medium Armor Plating Advanced Hacking Suite Advanced Hacking Suite > --- WEAPON ----------- Plasma Lance Plasma Lance > --- INVENTORY -------- Improved Fusion Compressor Improved Fusion Compressor Cooled Nuclear Pulse Thruster Large Storage Unit Experimental Energy Well Improved Matter Compressor Experimental Melee Analysis Suite Advanced Force Booster Experimental Utility Shielding Centrium Medium Armor Plating Graphene Brace Advanced Trap Extractor Transdimensional Reconstructor Nova Cannon Mini Smartbomb Launcher Advanced Datajack Advanced Datajack Plasma Lance [Rating: 207] Favorites ----------- Power Improved Fusion Compressor Engine Ion Engine Power Core Improved Fusion Compressor Reactor Quantum Reactor Propulsion Light Treads Treads Light Treads Leg Improved VSS Leg Wheel Centrium Wheel Hover Unit Improved Gravmag System Flight Unit Cooled Nuclear Pulse Thruster Utility Advanced Hacking Suite Device Structural Scanner Storage High-capacity Storage Unit Processor Advanced Targeting Computer Hackware Advanced Hacking Suite Protection Experimental Utility Shielding Weapon Advanced Beam Cannon Energy Gun Advanced Beam Rifle Energy Cannon Advanced Beam Cannon Ballistic Gun Heavy Assault Rifle Ballistic Cannon Light Cannon Launcher Mini Smartbomb Launcher Special Weapon Mining Laser Impact Weapon Shock Maul Slashing Weapon Greatsword Piercing Weapon Plasma Lance Special Melee Weapon Advanced Datajack Build | -11 -10 -10 -9 -9 -9 -8 -8 -8 -8 -7 -7 -7 -7 -7 -7 -6 -6 -6 -6 -6 -6 -6 -6 -5 -5 -5 -5 -5 -5 -4 -4 -4 -4 -4 -4 -4 -3 -3 -2 -1 -1 ------- Run | Yrd Mat Min Mat Min Exi Min Mat Gar Mat Fac Was Fac Low Low Dat Pro Fac Was Fac Ext Cet Arc Hub Fac Was Fac Upp Upp War Pro Fac Was Fac Upp Upp Zhi Pro Res Res Acc Com Slots Evolved 18 | . . . 2 . . . 2 . . 2 . . . . . . 2 . . . . . . 2 . . . . . . 2 . . . . . . 2 2 2 . Power . | . . . . . . . . . . . . . . . . . . . . . . . . . . . . . . . . . . . . . . . . . . Propulsion 6 | . . . 1 . . . 1 . . . . . . . . . . . . . . . . 1 . . . . . . 1 . . . . . . . 1 1 . Utility 12 | . . . 1 . . . 1 . . 2 . . . . . . 2 . . . . . . 1 . . . . . . 1 . . . . . . 2 1 1 . Weapon . | . . . . . . . . . . . . . . . . . . . . . . . . . . . . . . . . . . . . . . . . . . Parts Attached 717 | 7 18 1 33 2 2 . 50 13 10 57 4 56 4 . 3 4 29 2 53 12 9 13 12 28 1 48 . . 14 1 75 1 58 2 . 1 1 37 9 23 24 Power 34 | 1 . . 3 1 . . 4 . . 6 2 . . . . 1 2 2 . . 1 . 1 2 . 2 . . . . 3 . 1 . . . . 1 . 1 . Engine 12 | 1 . . 3 1 . . 4 . . . 1 . . . . 1 1 . . . . . . . . . . . . . . . . . . . . . . . . Core 19 | . . . . . . . . . . 6 . . . . . . 1 2 . . . . . 2 . 2 . . . . 3 . 1 . . . . 1 . 1 . Reactor 3 | . . . . . . . . . . . 1 . . . . . . . . . 1 . 1 . . . . . . . . . . . . . . . . . . Propulsion 120 | 2 2 . 8 . . . 15 5 2 10 . 6 . . . 3 4 . 8 1 2 . 2 5 1 4 . . 1 . 11 . 12 . . . 1 8 1 3 3 Treads 38 | 2 2 . 8 . . . 14 5 2 . . . . . . . . . . . 2 . 1 . . . . . . . . . 2 . . . . . . . . Leg 2 | . . . . . . . . . . . . . . . . . . . . . . . 1 . . 1 . . . . . . . . . . . . . . . Wheel 1 | . . . . . . . . . . . . . . . . . . . . . . . . . . . . . . . . . . . . . . . . . 1 Hover 1 | . . . . . . . . . . . . . . . . . . . 1 . . . . . . . . . . . . . . . . . . . . . . Flight 78 | . . . . . . . 1 . . 10 . 6 . . . 3 4 . 7 1 . . . 5 1 3 . . 1 . 11 . 10 . . . 1 8 1 3 2 Utility 303 | 2 4 1 6 1 2 . 11 3 1 24 2 34 2 . 1 . 17 . 31 1 3 11 9 13 . 27 . . 9 . 24 1 22 . . 1 . 13 2 11 14 Device 131 | 1 . . 1 1 1 . 6 . . 9 1 20 2 . 1 . 4 . 17 1 1 5 4 4 . 13 . . 7 . 8 . 8 . . 1 . 2 2 5 6 Storage 13 | 1 1 . . . 1 . . 1 . 2 . 1 . . . . 1 . . . 1 . . 1 . 1 . . . . 1 . . . . . . . . . 1 Processor 22 | . 3 1 . . . . 2 . . 1 1 1 . . . . . . . . . . 1 1 . . . . 1 . 1 1 1 . . . . 2 . 1 4 Hackware 65 | . . . . . . . . . . 11 . 12 . . . . 8 . 8 . . . . 1 . 7 . . . . 5 . 4 . . . . 4 . 5 . Protection 72 | . . . 5 . . . 3 2 1 1 . . . . . . 4 . 6 . 1 6 4 6 . 6 . . 1 . 9 . 9 . . . . 5 . . 3 Artifact . | . . . . . . . . . . . . . . . . . . . . . . . . . . . . . . . . . . . . . . . . . . Weapon 260 | 2 12 . 16 . . . 20 5 7 17 . 16 2 . 2 . 6 . 14 10 3 2 . 8 . 15 . . 4 1 37 . 23 2 . . . 15 6 8 7 Energy Gun 10 | 1 . . . . . . 1 2 3 . . . 1 . . . . . . . 1 1 . . . . . . . . . . . . . . . . . . . Energy Cannon 67 | . . . 6 . . . 13 2 1 . . . . . . . . . 2 . . . . 3 . 3 . . . . 15 . 10 . . . . 5 1 3 3 Ballistic Gun 21 | 1 7 . 7 . . . 1 . 2 . . . . . . . . . . . 2 1 . . . . . . . . . . . . . . . . . . . Ballistic Cannon 2 | . 1 . . . . . . . . . . . . . . . . . . . . . . . . 1 . . . . . . . . . . . . . . . Launcher 24 | . . . 1 . . . . . . 2 . 3 . . . . 1 . 2 3 . . . . . . . . 2 . 4 . 2 1 . . . 2 . 1 . Special Weapon 5 | . 4 . 1 . . . . . . . . . . . . . . . . . . . . . . . . . . . . . . . . . . . . . . Impact Weapon 24 | . . . 1 . . . . . . . . . . . . . 4 . 7 3 . . . 4 . 5 . . . . . . . . . . . . . . . Slashing Weapon 33 | . . . . . . . 5 1 1 12 . 9 1 . 1 . . . 2 . . . . . . . . . . . . . . . . . . . 1 . . Piercing Weapon 53 | . . . . . . . . . . . . . . . . . . . . . . . . . . 3 . . 2 1 17 . 11 1 . . . 8 3 4 3 Special Melee Weapon 21 | . . . . . . . . . . 3 . 4 . . 1 . 1 . 1 4 . . . 1 . 3 . . . . 1 . . . . . . . 1 . 1 Unidentified Prototypes 28 | . 1 . 3 . . . 3 . 1 1 1 2 . . . . . . . . 4 . 4 . . 1 . . 5 . . . . . . 1 . . . 1 . Corrupted Parts 4 | . . . . . . . . . . . . . . . . . . . . . 3 . . . . . . . . . . . 1 . . . . . . . . System Corruption 20 | . . . . . . . . . . . . . . . . . . . . . 15 . . . . . . . . . . . 5 . . . . . . . . Parts Lost 38 | . 2 . 5 . . . 5 2 . 3 . . . . 5 2 . . . . . 1 1 . . 1 . . . . 6 . . . . . . 1 . . 4 Power 4 | . . . 2 . . . . . . . . . . . 1 . . . . . . . . . . 1 . . . . . . . . . . . . . . . Propulsion 19 | . 2 . 2 . . . 2 . . 3 . . . . 3 1 . . . . . . . . . . . . . . 4 . . . . . . . . . 2 Utility 10 | . . . . . . . 3 . . . . . . . . 1 . . . . . 1 1 . . . . . . . 1 . . . . . . 1 . . 2 Weapon 5 | . . . 1 . . . . 2 . . . . . . 1 . . . . . . . . . . . . . . . 1 . . . . . . . . . . Highest Loss Streak 5 | . 1 . 3 . . . 1 2 . 2 . . . . 5 2 . . . . . 1 1 . . 1 . . . . 2 . . . . . . 1 . . 4 To Critical Strikes . | . . . . . . . . . . . . . . . . . . . . . . . . . . . . . . . . . . . . . . . . . . Average Slot Usage (%) 93 | . 99 99 98 100 99 100 98 97 99 86 91 91 92 92 89 66 94 100 98 86 80 82 80 95 98 97 100 100 99 99 85 84 87 89 89 87 89 88 91 89 91 Engine 4 | . 14 14 11 11 11 11 8 9 9 2 6 7 7 7 4 . 4 . . . . . . . . . . . . . . . . . . . . . . . . Core 2 | . . . . . . . . . . 4 . . . . . . 1 6 6 6 3 . . 5 5 5 5 5 5 5 4 5 4 5 5 5 5 4 4 4 4 Treads 13 | . 27 28 31 33 33 33 35 36 36 . . . . . . . . . . . 7 13 12 . . . . . . . . . . . . . . . . . . Flight 14 | . . . . . . . . . . 28 30 30 30 30 30 22 24 26 26 25 9 . . 26 27 28 29 29 29 29 23 21 20 21 21 21 21 19 21 24 23 Device 9 | . 3 . 4 11 10 11 11 18 18 4 6 5 7 7 7 7 4 6 10 13 8 8 3 5 5 9 11 11 11 11 11 11 9 10 10 8 10 14 18 21 18 Storage 7 | . 14 14 11 11 11 11 9 9 9 6 7 7 7 7 7 7 6 6 6 6 6 6 6 5 5 5 5 5 5 5 5 5 5 5 5 5 5 4 4 4 4 Processor 2 | . 10 13 6 . . . 8 . . . . . . . . . . . . . . . . . 5 1 . . . . . 3 . . . . . . . . 10 Hackware 15 | . . . . . . . . . . 30 30 30 30 30 30 27 32 33 32 26 26 20 20 23 23 24 23 23 23 23 25 26 28 26 26 26 26 25 21 19 12 Protection 6 | . . . 10 11 11 11 6 8 9 . . . . . . . 5 6 1 . 3 13 16 14 11 8 11 11 10 11 5 5 7 10 10 10 10 10 10 8 9 Energy Cannon 4 | . . . 10 22 22 22 16 8 9 . . . . . . . . . . . . . . . . . . . . . . . . . . . . . . . . Ballistic Gun 3 | . 23 28 10 . . . . . 1 . . . . . . . . . . . 6 7 13 . . . . . . . . . . . . . . . . . . Piercing Weapon 2 | . . . . . . . . . . . . . . . . . . . . . . . . . . . 5 5 4 4 4 5 8 9 10 10 10 8 7 7 7 Naked Turns . | . . . . . . . . . . . . . . . . . . . . . . . . . . . . . . . . . . . . . . . . . . Heaviest Build 135 | 14 52 51 64 65 65 65 73 69 69 21 18 20 18 18 18 15 30 30 40 41 131 131 135 48 37 42 40 40 41 40 60 55 64 62 62 64 64 67 72 82 88 Greatest Support 176 | 40 40 40 63 63 63 63 112 96 80 21 20 24 19 28 24 17 39 46 52 40 176 160 160 44 45 56 45 56 57 48 62 57 66 64 64 64 67 73 80 88 88 Greatest Overweight (x) 23 | . 1 1 1 1 1 1 1 . . 1 . . . . 2 . . . 1 1 1 . 1 1 . . . . . . 8 . 2 . . . . 1 . 1 23 Average Overweight (x) . | . . 1 . 1 1 1 . . . . . . . . . . . . . . . . . . . . . . . . . . . . . . . . . . . Largest Inventory Capacity 25 | 8 20 20 20 20 20 20 20 20 20 20 10 10 10 10 10 10 15 15 15 15 25 25 25 25 15 15 15 15 15 15 20 20 20 20 20 20 20 20 20 20 20 Average Capacity 17 | 7 19 20 20 20 20 20 20 20 20 10 10 10 10 10 10 10 11 15 15 15 21 25 25 15 15 15 15 15 15 15 16 20 20 20 20 20 20 20 20 20 19 Most Carried 25 | 5 20 20 20 20 20 20 20 20 20 20 10 10 10 10 10 9 15 15 15 15 23 25 25 25 15 15 15 15 15 15 20 20 20 20 20 20 20 20 20 20 20 Average Carried 16 | 2 15 19 19 19 19 20 19 19 19 9 9 9 10 10 9 7 10 14 14 14 19 24 24 14 14 14 14 15 14 15 15 19 19 20 20 19 20 19 19 19 18 Final Capacity 25 | 8 20 20 20 20 20 20 20 20 20 10 10 10 10 10 10 10 15 15 15 15 25 25 25 15 15 15 15 15 15 15 20 20 20 20 20 20 20 20 20 20 15 Final Carried 25 | 5 19 19 20 20 20 20 20 20 20 10 10 10 10 10 10 7 14 14 15 15 23 25 25 15 14 15 15 15 15 15 19 20 20 20 20 20 20 20 20 20 11 Class Distribution -------------------- 26% | Mutant 24% | Wizard-Sprinter 21% | Hacker-Sprinter 13% | Scavenger-Mutant 5% | Hacker-Mutant 5% | Wizard-Mutant Dominant Class ---------------- Mutant | -10/Materials Mutant | -10/Mines Mutant | -9/Materials Mutant | -9/Mines Scavenger-Mutant | -9/Exiles Scavenger-Mutant | -8/Mines Mutant | -8/Materials Scavenger-Mutant | -8/Garrison Scavenger-Mutant | -8/Materials Hacker-Sprinter | -7/Factory Hacker-Sprinter | -7/Waste Hacker-Sprinter | -7/Factory Hacker-Sprinter | -7/Lower Caves Hacker-Sprinter | -7/Lower Caves Hacker-Sprinter | -7/Data Miner Hacker-Sprinter | -6/Proximity Caves Wizard-Sprinter | -6/Factory Wizard-Sprinter | -6/Waste Wizard-Sprinter | -6/Factory Hacker-Sprinter | -6/Extension Hacker-Mutant | -6/Cetus Hacker-Mutant | -6/Archives Hacker-Mutant | -6/Hub_04(d) Hacker-Sprinter | -5/Factory Hacker-Sprinter | -5/Waste Hacker-Sprinter | -5/Factory Hacker-Sprinter | -5/Upper Caves Hacker-Sprinter | -5/Upper Caves Hacker-Sprinter | -5/Warlord Hacker-Sprinter | -4/Proximity Caves Wizard-Sprinter | -4/Factory Wizard-Sprinter | -4/Waste Wizard-Sprinter | -4/Factory Wizard-Sprinter | -4/Upper Caves Wizard-Sprinter | -4/Upper Caves Wizard-Sprinter | -4/Zhirov Wizard-Sprinter | -3/Proximity Caves Wizard-Sprinter | -3/Research Wizard-Sprinter | -2/Research Wizard-Sprinter | -1/Access Hacker-Sprinter | -1/Command Resources | -11 -10 -10 -9 -9 -9 -8 -8 -8 -8 -7 -7 -7 -7 -7 -7 -6 -6 -6 -6 -6 -6 -6 -6 -5 -5 -5 -5 -5 -5 -4 -4 -4 -4 -4 -4 -4 -3 -3 -2 -1 -1 ----------- Run | Yrd Mat Min Mat Min Exi Min Mat Gar Mat Fac Was Fac Low Low Dat Pro Fac Was Fac Ext Cet Arc Hub Fac Was Fac Upp Upp War Pro Fac Was Fac Upp Upp Zhi Pro Res Res Acc Com Matter Collected 26512 | 288 504 176 960 20 20 . 537 120 160 612 99 701 74 . . 65 829 . 2581 735 335 235 420 924 . 2882 142 30 471 265 3662 . 4227 200 86 . 125 1662 348 1035 982 Remotely . | . . . . . . . . . . . . . . . . . . . . . . . . . . . . . . . . . . . . . . . . . . Salvage Created 29431 | 113 800 52 1915 335 . 48 2450 710 567 393 . 835 116 . 25 . 988 . 2431 668 . 282 814 585 . 2152 165 30 67 193 3454 . 3402 205 . . . 2014 304 943 2375 Parts 1093 | 10 64 3 120 22 . 2 118 26 33 33 . 49 2 . 1 . 16 . 26 10 . 23 35 4 . 45 7 2 5 2 119 . 126 6 . . . 62 18 37 67 Haulers Intercepted 42 | . 2 . 6 . . . 4 . 3 1 . . . . . . 3 . 3 . . . . . . 3 . . . . 6 . 4 . . . . 3 2 2 . Recyclers Shooed 21 | . 2 . . . . . 3 . . . . 2 . . . . . . 4 . . . . 1 . 2 . . . . 1 . 2 . . . . 2 . 1 1 Parts Field Recycled . | . . . . . . . . . . . . . . . . . . . . . . . . . . . . . . . . . . . . . . . . . . Retrieved Matter . | . . . . . . . . . . . . . . . . . . . . . . . . . . . . . . . . . . . . . . . . . . Parts Self-Destructed 13 | . . . . . . . . . . . . . 1 . . 3 . . . . . . . . . . . . . 4 . . . 5 . . . . . . . Prevented 5 | . . . . . . . . . . . . . . . . 1 . . . . . . . . . . . 4 . . . . . . . . . . . . . Kills | -11 -10 -10 -9 -9 -9 -8 -8 -8 -8 -7 -7 -7 -7 -7 -7 -6 -6 -6 -6 -6 -6 -6 -6 -5 -5 -5 -5 -5 -5 -4 -4 -4 -4 -4 -4 -4 -3 -3 -2 -1 -1 ------- Run | Yrd Mat Min Mat Min Exi Min Mat Gar Mat Fac Was Fac Low Low Dat Pro Fac Was Fac Ext Cet Arc Hub Fac Was Fac Upp Upp War Pro Fac Was Fac Upp Upp Zhi Pro Res Res Acc Com Combat Hostiles Destroyed 214 | . 18 3 41 8 . 3 39 12 5 4 . 9 . . . . 3 . 4 7 . . 13 . . 1 . . 5 . 7 . 7 5 . . . 8 . 5 7 Melee 13 | . . . . . . . . . . 2 . 1 . . . . . . . . . . . . . . . . . . . . 2 1 . . . . . . 7 Guns 58 | . 14 3 18 . . . . 8 2 . . . . . . . . . . . . . 13 . . . . . . . . . . . . . . . . . . Cannons 76 | . 4 . 20 8 . 3 36 2 3 . . . . . . . . . . . . . . . . . . . . . . . . . . . . . . . . AOE 61 | . . . 3 . . . . . . 2 . 8 . . . . 3 . 4 7 . . . . . . . . 5 . 7 . 5 4 . . . 8 . 5 . Classes Destroyed 21 | 2 6 . 3 . . . 2 . . 1 . . 1 . . . . . . 2 . . 1 . . 1 . . . . 2 . . . . . . . . . . Worker 34 | . . . 2 . . . 2 . . . . 1 . . . . 1 . 3 . . . 2 2 . 6 . . . . 5 . 6 . . . . . . 2 2 Builder 27 | . 1 . 1 . . . . . 1 1 . 3 . . . . 3 . . 1 . . . 3 . 4 . . . . 1 . 3 . . . . . 4 1 . Tunneler 11 | 2 . . . . . . 2 . 1 . . . . . . . 1 . 2 . . . . . . 1 . . . . . . 2 . . . . . . . . Hauler 42 | . 2 . 6 . . . 4 . 3 1 . . . . . . 3 . 3 . . . . . . 3 . . . . 6 . 4 . . . . 3 2 2 . Recycler 114 | 1 1 . 1 1 . . 3 . 1 1 . 7 . . . . 5 . 14 3 . . . 4 . 13 . . . . 19 . 19 . . . . 11 . 4 6 Mechanic 1 | . . . . . . . . . . . . . . . . . . . . . . . . . . . . . . . 1 . . . . . . . . . . Operator 21 | . 4 . . . . . 2 . 1 2 . 1 . . . . . . . . . 8 . . . . . . . . . . 1 . . . . . . 1 1 Drone 1 | . . . . . . . . . . . . . . . . . . . . . . . . . . 1 . . . . . . . . . . . . . . . Watcher 41 | . 2 . 2 . . . 5 . . 3 . 4 . . . . 2 . 2 . . . . 2 . 3 . . . . 5 . 5 . . . . 2 1 . 3 Swarmer 81 | . 8 3 10 2 . 3 6 4 . 2 . 8 . . . . 3 . 4 . . . . . . . . . . . 4 . 6 5 . . . 8 . 5 . Cutter 3 | . . . . . . . . . . . . . . . . . . . . . . . . . . . . . . . 3 . . . . . . . . . . Saboteur 4 | . . . . . . . . . . . . . . . . . . . . 1 . . . . . . . . 3 . . . . . . . . . . . . Grunt 81 | . 10 . 21 6 . . 21 4 3 . . . . . . . . . . 3 . . 10 . . . . . 2 . . . . . . . . . . . 1 Brawler 2 | . . . 1 . . . . . . . . . . . . . . . . 1 . . . . . . . . . . . . . . . . . . . . . Duelist 3 | . . . . . . . . . . . . . . . . . . . . 2 . . 1 . . . . . . . . . . . . . . . . . . Protector 1 | . . . . . . . . . . . . . . . . . . . . . . . 1 . . . . . . . . . . . . . . . . . . Sentry 25 | . . . 9 . . . 9 3 2 . . . . . . . . . . . . . . . . . . . . . . . 1 . . . . . . . 1 Hunter 3 | . . . . . . . 2 1 . . . . . . . . . . . . . . . . . . . . . . . . . . . . . . . . . Programmer 6 | . . . . . . . . . . 2 . 1 . . . . . . . . . . . . . . . . . . . . . . . . . . . . 3 Heavy 1 | . . . . . . . 1 . . . . . . . . . . . . . . . . . . . . . . . . . . . . . . . . . . Lightning 1 | . . . . . . . . . . . . . . . . . . . . . . . 1 . . . . . . . . . . . . . . . . . . Combat Programmer 1 | . . . . . . . . . . . . . . . . . . . . . . . . . . . . . . . . . . . . . . . . . 1 Decomposer 5 | . . . . . . . . . . . . . . . . . . . . . . . . . . . 5 . . . . . . . . . . . . . . Packrat 4 | . . . . . . . . . . . . . . . . . . . . . . . . . . . . . . 2 . . . 2 . . . . . . . Samaritan 4 | . . . . . . . . . . . . . 1 . . . . . . . . . . . . . 2 1 . . . . . . . . . . . . . Wasp 1 | . . . . . . . . . . . . . . . . . . . . . . . . . . . . . . 1 . . . . . . . . . . . Best Kill Streak 9 | 3 5 3 7 4 . 3 9 4 4 3 . 5 . . 1 . 4 . 4 7 . 3 5 2 . 4 . . 3 . 6 . 4 5 . . . 7 4 7 3 Combat Bots Only 7 | . 3 3 6 3 . 3 6 4 2 2 . 4 . . . . 3 . 4 7 . . 4 . . 1 . . 3 . 4 . 4 5 . . . 5 . 5 3 Max Kills in Single Turn 7 | 1 1 1 2 1 . 1 2 1 1 1 . 3 1 . 1 . 2 . 3 3 . 1 2 1 . 1 1 1 2 1 3 . 3 4 . . . 3 1 7 1 Gunslinging 1 | . . . . . . . . . . . . . . . . . . . . . . . 1 . . . . . . . . . . . . . . . . . . Exploded 5 | . . . 2 . . . . . . 1 . 3 . . . . 2 . 3 3 . . . . . . . . 2 . 2 . 3 4 . . . 3 . 5 . Melee 1 | . . . . . . . . . . 1 . 1 . . . . . . . . . . . . . . . . . . . . 1 1 . . . . . . 1 Uniques/NPCs Destroyed 2 | . . . . . . . . . . . . . . . 1 . . . . . . . . . . . . . . . . . . . . . . . . . 1 Data Miner (-7/Data Miner) MAIN.C Shell (-1/Command) Combat | -11 -10 -10 -9 -9 -9 -8 -8 -8 -8 -7 -7 -7 -7 -7 -7 -6 -6 -6 -6 -6 -6 -6 -6 -5 -5 -5 -5 -5 -5 -4 -4 -4 -4 -4 -4 -4 -3 -3 -2 -1 -1 -------- Run | Yrd Mat Min Mat Min Exi Min Mat Gar Mat Fac Was Fac Low Low Dat Pro Fac Was Fac Ext Cet Arc Hub Fac Was Fac Upp Upp War Pro Fac Was Fac Upp Upp Zhi Pro Res Res Acc Com Hostile Shots Fired 1209 | . 90 9 144 24 . 16 189 46 16 40 . 21 12 7 10 10 9 . 51 6 . 6 84 3 . 26 . 5 6 5 103 . 51 10 17 . 26 26 . 50 91 Missed 482 | . 25 3 38 5 . 5 57 9 2 27 . 11 8 3 1 6 6 . 29 . . 3 15 . . 9 . 5 3 1 44 . 23 5 13 . 18 15 . 38 55 Damage Taken 14383 | . 644 44 1431 240 . 86 2139 472 217 507 . 152 21 67 419 93 61 . 228 281 47 72 1718 62 . 199 . . 56 114 1688 . 908 88 58 . 144 238 12 286 1591 Core 2216 | . 123 21 227 42 . 10 339 23 16 89 . 30 10 29 113 20 . . 72 59 . . 115 . . . . . . . 533 . 116 . . . 33 50 . 21 125 Absorbed by Shields . | . . . . . . . . . . . . . . . . . . . . . . . . . . . . . . . . . . . . . . . . . . Reduced by Siege Mode 122 | . . . . . . . . . . . . . . . . . . . . . . . 122 . . . . . . . . . . . . . . . . . . Redirected to Shielding 850 | . . . . . . . . . . . . . . . . . 33 . 5 . . . 73 . . 16 . . . . 236 . 81 12 . . 22 46 . 31 295 Regen/Repaired (Parts) 3407 | . 110 . . . . . 169 . . 168 . 166 . . . . 19 . 27 . . . . 690 . 82 . . . . 719 . 824 . . . . 254 . . 179 Core Remaining (%) 68 | 100 . 42 . . . 30 . . 31 . . . . . . 58 . . . . . . 71 . . . . . . 100 . . . . . . 40 96 100 . 90 Volleys Fired 716 | 6 94 4 95 14 . 5 135 43 40 2 . 6 . . . . 2 . 17 10 . 72 35 5 . 5 . . 5 . 41 . 41 3 . . . 13 2 17 4 Largest 2 | 2 2 2 2 2 . 2 2 2 2 1 . 1 . . . . 1 . 1 1 . 2 2 1 . 1 . . 1 . 1 . 1 1 . . . 1 1 1 1 Hottest 136 | 60 100 46 136 136 . 136 136 136 129 36 . 43 . . . . 43 . 90 80 . 115 70 90 . 90 . . 80 . 90 . 98 80 . . . 98 98 113 113 Shots Fired 1132 | 12 163 9 182 28 . 10 260 86 66 2 . 6 . . . . 2 . 16 10 . 75 69 5 . 5 . . 5 . 41 . 41 3 . . . 13 2 17 4 Gun 476 | 12 127 9 99 . . . 10 35 40 . . . . . . . . . . . . 75 69 . . . . . . . . . . . . . . . . . . Cannon 585 | . 23 . 76 28 . 10 250 51 26 . . . . . . . . . 13 . . . . 5 . 5 . . . . 37 . 30 . . . . 9 2 16 4 Launcher 57 | . . . 6 . . . . . . 2 . 6 . . . . 2 . 3 10 . . . . . . . . 5 . 4 . 11 3 . . . 4 . 1 . Special 14 | . 13 . 1 . . . . . . . . . . . . . . . . . . . . . . . . . . . . . . . . . . . . . . Kinetic 372 | 6 150 9 99 . . . 10 . 15 . . . . . . . . . . . . 14 69 . . . . . . . . . . . . . . . . . . Thermal 703 | 6 13 . 77 28 . 10 250 86 51 . . . . . . . . . 13 . . 61 . 5 . 5 . . . . 37 . 30 . . . . 9 2 16 4 Explosive 57 | . . . 6 . . . . . . 2 . 6 . . . . 2 . 3 10 . . . . . . . . 5 . 4 . 11 3 . . . 4 . 1 . Electromagnetic . | . . . . . . . . . . . . . . . . . . . . . . . . . . . . . . . . . . . . . . . . . . Robot Hit Streak 24 | 2 13 2 15 13 . 3 21 24 8 . . 6 . . . . 7 . 8 9 . 8 8 . . . . . . . 10 . . . . . . . . 11 . Robot Miss Streak 6 | 2 6 2 3 3 . 2 3 2 2 . . . . . . . . . . . . 3 5 . . . . . . . . . . . . . . . . . . Penetration Max 1 | . . . . . . . . . . . . . . . . . . . . . . . 1 . . . . . . . . . . . . . . . . . . Secondary Targets 7 | . 2 . 3 . . . . . . . . . . . . . . . . . . . 2 . . . . . . . . . . . . . . . . . . Max Gunslinging Chain 1 | . 1 . 1 . . . . . . . . . . . . . . . . . . . 1 . . . . . . . . . . . . . . . . . . Shots Hit Robots 1034 | 4 82 4 120 15 . 5 186 61 42 15 . 27 3 . 2 . 32 . 40 20 . 51 43 14 . 36 7 1 . 3 54 . 60 3 . . . 21 13 15 55 Core Hits 570 | 3 41 3 74 10 . 3 80 23 18 14 . 18 2 . . . 7 . 9 29 . 21 32 . . 11 5 . 7 . 39 . 44 6 . . . 22 6 14 29 Critical Kills 17 | . . . . . . . 5 1 . . . . . . . . 1 . 1 . . . 9 . . . . . . . . . . . . . . . . . . Critical Parts Destroyed 41 | . . . 1 . . . . . . . . . . . . . 3 . 11 3 . 2 3 7 . 11 . . . . . . . . . . . . . . . Critical Strikes 89 | . . . 1 . . . 5 6 2 1 . . . . . . 4 . 13 3 . 2 12 7 . 12 . . . 1 5 . 4 . . . . . . 1 10 Burn 7 | . . . . . . . . 5 2 . . . . . . . . . . . . . . . . . . . . . . . . . . . . . . . . Meltdown 6 | . . . . . . . 5 1 . . . . . . . . . . . . . . . . . . . . . . . . . . . . . . . . . Destroy 15 | . . . 1 . . . . . . . . . . . . . . . . . . 2 12 . . . . . . . . . . . . . . . . . . Smash 37 | . . . . . . . . . . . . . . . . . 4 . 12 3 . . . 7 . 11 . . . . . . . . . . . . . . . Sever 2 | . . . . . . . . . . 1 . . . . . . . . 1 . . . . . . . . . . . . . . . . . . . . . . Impale 22 | . . . . . . . . . . . . . . . . . . . . . . . . . . 1 . . . 1 5 . 4 . . . . . . 1 10 Melee Attacks 1131 | . . . 2 . . . 9 57 1 64 . 79 4 . 17 . 76 . 78 23 . . . 29 . 87 8 3 26 4 132 . 171 13 1 . 4 97 22 36 88 Impact 255 | . . . 2 . . . . . . . . . . . . . 73 . 67 10 . . . 28 . 75 . . . . . . . . . . . . . . . Slashing 237 | . . . . . . . 9 57 1 63 . 79 4 . 16 . . . 8 . . . . . . . . . . . . . . . . . . . . . . Piercing 611 | . . . . . . . . . . . . . . . . . . . . . . . . . . 11 8 3 26 4 131 . 171 13 1 . 4 97 19 36 87 Sneak Attacks 237 | . . . . . . . 1 . . 5 . 12 1 . 2 . 15 . 25 15 . . . 11 . 28 7 1 . 3 32 . 34 2 . . . 15 9 9 10 Combat Hostiles 1 | . . . . . . . . . . . . . . . . . . . . . . . . . . . . . . . . . . . . . . . . . 1 Follow-up Attacks 16 | . . . . . . . . . . . . . . . . . . . . . . . . . . . . . . . . . 7 . . . . 2 2 1 4 Damage Inflicted 55729 | 62 1343 75 2516 339 . 123 4119 1317 874 1221 . 2877 304 . 105 . 2188 . 3391 2146 . 1417 1344 1308 . 3471 693 116 644 300 6450 . 5832 674 . . . 3063 956 1945 4516 Guns 6242 | 62 1129 62 999 . . . 102 620 510 . . . . . . . . . . . . 1417 1341 . . . . . . . . . . . . . . . . . . Cannons 6628 | . 207 . 1121 324 . 123 3800 697 356 . . . . . . . . . . . . . . . . . . . . . . . . . . . . . . . . Explosions 9219 | . . . 357 . . . . . . 141 . 835 . . . . 469 . 383 1737 . . . . . . . . 644 . 1835 . 935 439 . . . 871 . 573 . Melee 33473 | . . . . . . . 135 . . 1080 . 2042 304 . 105 . 1719 . 3008 409 . . . 1308 . 3471 693 116 . 300 4615 . 4897 235 . . . 2192 956 1372 4516 Ramming 167 | . 7 13 39 15 . . 82 . 8 . . . . . . . . . . . . . 3 . . . . . . . . . . . . . . . . . . Kinetic 4306 | 27 1336 62 999 . . . 102 . 182 . . . . . . . . . . . . 257 1341 . . . . . . . . . . . . . . . . . . Thermal 8906 | 35 . . 1121 324 . 123 3800 1317 684 . . . . . . . . . . . . 1160 . . . . . . . . 342 . . . . . . . . . . Explosive 8737 | . . . 357 . . . . . . 141 . 835 . . . . 469 . 383 1737 . . . . . . . . 644 . 1353 . 935 439 . . . 871 . 573 . Electromagnetic 140 | . . . . . . . . . . . . . . . . . . . . . . . . . . . . . . . 140 . . . . . . . . . . Impact 8704 | . . . . . . . . . . . . . . . . . 1719 . 2609 409 . . . 1308 . 2659 . . . . . . . . . . . . . . . Slashing 4065 | . . . . . . . 135 . . 1080 . 2042 304 . 105 . . . 399 . . . . . . . . . . . . . . . . . . . . . . Piercing 20704 | . . . . . . . . . . . . . . . . . . . . . . . . . . 812 693 116 . 300 4615 . 4897 235 . . . 2192 956 1372 4516 Highest Corruption 22 | . 2 2 . . . . . . . 2 2 3 3 3 3 3 4 13 13 7 22 22 8 . 8 8 3 3 3 . 3 3 7 7 7 7 7 . . . 18 Average Corruption 4 | . 2 2 . . . . . . . 1 2 2 3 3 3 3 1 9 7 7 14 16 5 . 8 5 3 3 3 . 1 3 4 7 7 7 7 . . . 11 Corruption Purged 37 | . . . . . . . . . . . . . . . . . . . 7 . . 22 . . . 5 . . . . . . 3 . . . . . . . . Corruption Blocked 5 | . . . . . . . . . . . . . . . . . . . . . . . . . . . . . . . . 5 . . . . . . . . . Effects 326 | . 17 15 . . . . . . . 19 3 26 1 2 2 2 . 1 47 10 10 22 12 . 1 35 1 2 . . 1 1 40 4 3 1 3 . . . 45 Message Errors 85 | . 4 2 . . . . . . . 10 . 6 . . . . . . 8 3 2 2 2 . . 9 . . . . . . 16 3 2 . 2 . . . 14 Matter Fused 81 | . 8 4 . . . . . . . 4 . 9 . . 1 . . . 15 3 3 6 3 . . 10 1 . . . 1 1 2 . . 1 1 . . . 8 Heat Flow Errors 39 | . 3 2 . . . . . . . 1 . 2 . . . 1 . . 6 2 2 . . . . 4 . . . . . . 8 . 1 . . . . . 7 Energy Discharges 37 | . 1 3 . . . . . . . 1 2 5 1 . . . . 1 4 1 2 2 1 . 1 3 . . . . . . 3 1 . . . . . . 5 Parts Rejected 3 | . . . . . . . . . . . . . . . . . . . 2 . . . . . . 1 . . . . . . . . . . . . . . . Parts Fused 2 | . . . . . . . . . . . . 1 . . . . . . . . . . . . . 1 . . . . . . . . . . . . . . . Data Loss (minor) 40 | . 1 1 . . . . . . . 1 . 3 . 1 . 1 . . 7 1 . 4 4 . . 4 . . . . . . 5 . . . . . . . 7 Data Loss (major) 21 | . . 1 . . . . . . . . 1 . . 1 . . . . 2 . 1 2 1 . . 2 . 1 . . . . 6 . . . . . . . 3 Misfires 2 | . . 1 . . . . . . . . . . . . . . . . . . . 1 . . . . . . . . . . . . . . . . . . . Alerts 7 | . . 1 . . . . . . . 2 . . . . 1 . . . 1 . . . . . . 1 . 1 . . . . . . . . . . . . . Misdirections 2 | . . . . . . . . . . . . . . . . . . . 1 . . . . . . . . . . . . . . . . . . . . . 1 Weapon Failures 7 | . . . . . . . . . . . . . . . . . . . 1 . . 5 1 . . . . . . . . . . . . . . . . . . Overload Shots . | . . . . . . . . . . . . . . . . . . . . . . . . . . . . . . . . . . . . . . . . . . Overflow Damage 11430 | . . . 21 . . 1 22 7 11 178 . 905 62 . 45 . 712 . 1703 235 . . . 1093 . 1692 129 41 101 315 1289 . 1218 171 . . . 553 164 159 603 Projectiles 51 | . . . 12 . . 1 12 7 11 . . . . . . . 8 . . . . . . . . . . . . . . . . . . . . . . . . Explosions 612 | . . . 9 . . . . . . 20 . 133 . . . . . . 29 1 . . . . . . . . 101 . 106 . 22 74 . . . 65 . 52 . Melee 10767 | . . . . . . . 10 . . 158 . 772 62 . 45 . 704 . 1674 234 . . . 1093 . 1692 129 41 . 315 1183 . 1196 97 . . . 488 164 107 603 Knockbacks 54 | . 4 . . . . . . . . . . . . . . . 11 . 18 5 . . . 8 . 8 . . . . . . . . . . . . . . . Impact 48 | . . . . . . . . . . . . . . . . . 10 . 18 5 . . . 8 . 7 . . . . . . . . . . . . . . . Kinetic 4 | . 4 . . . . . . . . . . . . . . . . . . . . . . . . . . . . . . . . . . . . . . . . Secondary 2 | . . . . . . . . . . . . . . . . . 1 . . . . . . . . 1 . . . . . . . . . . . . . . . Self-Inflicted Damage 367 | . . . 136 . . . . . . 46 . . . . . . . . 11 . . . . . . . . . . . 174 . . . . . . . . . . Shots 9 | . . . 4 . . . . . . 1 . . . . . . . . 1 . . . . . . . . . . . 3 . . . . . . . . . . Rammed 26 | . 3 4 4 4 . . 8 . 2 . . . . . . . . . . . . . 1 . . . . . . . . . . . . . . . . . . Targets Rammed 32 | . 3 4 5 5 . . 12 . 2 . . . . . . . . . . . . . 1 . . . . . . . . . . . . . . . . . . Kicked . | . . . . . . . . . . . . . . . . . . . . . . . . . . . . . . . . . . . . . . . . . . Crushed 6 | . . . 1 1 . . 4 . . . . . . . . . . . . . . . . . . . . . . . . . . . . . . . . . . Highest Temperature 365 | . 236 228 324 345 . 195 156 365 275 202 . 151 . 34 . 211 1 26 291 193 223 238 93 132 4 249 148 151 292 214 290 10 306 200 220 36 128 222 201 276 273 Average Temperature 53 | . 56 103 93 109 . 98 32 106 72 68 . 69 . 15 . 181 1 11 69 77 111 105 36 15 2 31 47 72 81 101 61 5 48 55 45 17 50 40 49 43 52 Received Heat Transfer 2972 | . 246 . 483 96 . . 954 180 108 72 . . . 36 . 27 . . 27 78 9 9 345 . . . . . 12 18 66 . 84 9 . . . 39 20 27 27 Effects 8 | . . . 2 . . . . . . . . . . . . . . . 1 . . . . . . 1 . . . 1 1 . 2 . . . . . . . . Energy Bleed 7 | . . . 2 . . . . . . . . . . . . . . . 1 . . . . . . 1 . . . . 1 . 2 . . . . . . . . Interference 1 | . . . . . . . . . . . . . . . . . . . . . . . . . . . . . . 1 . . . . . . . . . . . Siege Activations 3 | . . . . . . . . . . . . . . . . . . . . . . . 3 . . . . . . . . . . . . . . . . . . Total Turns 80 | . . . . . . . . . . . . . . . . . . . . . . . 80 . . . . . . . . . . . . . . . . . . Longest Duration 51 | . . . . . . . . . . . . . . . . . . . . . . . 51 . . . . . . . . . . . . . . . . . . Robots Corrupted . | . . . . . . . . . . . . . . . . . . . . . . . . . . . . . . . . . . . . . . . . . . Combat Hostiles . | . . . . . . . . . . . . . . . . . . . . . . . . . . . . . . . . . . . . . . . . . . Parts Fried 91 | . . . . . . . . . . . . . . . . . 18 . 32 8 . . 2 11 . 19 . . . . 1 . . . . . . . . . . Impact Corruptions 141 | . . . . . . . 1 . . . . . . . . . 26 . 44 8 . . . 26 . 36 . . . . . . . . . . . . . . . Robots Melted 8 | . . . . . . . 5 3 . . . . . . . . . . . . . . . . . . . . . . . . . . . . . . . . . Combat Hostiles 5 | . . . . . . . 3 2 . . . . . . . . . . . . . . . . . . . . . . . . . . . . . . . . . Parts Melted 39 | . . . 6 . . . 22 6 3 . . 1 . . . . . . . . . 1 . . . . . . . . . . . . . . . . . . . Heat Transferred 15528 | 75 . . 1933 592 . 222 6808 2775 1369 . . . . . . . . . . . . 1554 . . . . . . . . 200 . . . . . . . . . . Parts Sabotaged 1 | . . . . . . . . . . . . . . . . . . . . 1 . . . . . . . . . . . . . . . . . . . . . Parts Stolen . | . . . . . . . . . . . . . . . . . . . . . . . . . . . . . . . . . . . . . . . . . . Parts Stripped . | . . . . . . . . . . . . . . . . . . . . . . . . . . . . . . . . . . . . . . . . . . Power Chain Reactions . | . . . . . . . . . . . . . . . . . . . . . . . . . . . . . . . . . . . . . . . . . . Alert | -11 -10 -10 -9 -9 -9 -8 -8 -8 -8 -7 -7 -7 -7 -7 -7 -6 -6 -6 -6 -6 -6 -6 -6 -5 -5 -5 -5 -5 -5 -4 -4 -4 -4 -4 -4 -4 -3 -3 -2 -1 -1 ------- Run | Yrd Mat Min Mat Min Exi Min Mat Gar Mat Fac Was Fac Low Low Dat Pro Fac Was Fac Ext Cet Arc Hub Fac Was Fac Upp Upp War Pro Fac Was Fac Upp Upp Zhi Pro Res Res Acc Com Peak Influence 1623 | 15 352 102 899 495 . 70 841 1290 794 492 35 207 . . . . 229 76 433 1623 980 649 977 515 96 294 . . . . 639 148 598 . . . . 386 226 453 683 Initial 908 | . 9 102 29 350 . . . 531 628 258 35 24 . . . . 75 46 53 139 908 392 156 478 36 67 . . . . 150 133 103 . . . . 20 108 135 253 Average 299 | 6 234 38 543 260 . 49 340 789 663 201 35 50 . . . . 148 62 197 560 968 533 592 173 66 95 . . . . 283 143 261 . . . . 114 183 272 502 Maximum Alert Level 5 | . 1 . 3 2 . . 3 4 3 2 . 1 . . . . 1 . 2 5 3 2 3 2 . 1 . . . . 2 . 2 . . . . 1 1 2 2 Low Security (%) 46 | 100 27 100 7 33 . 100 46 . . 59 100 98 . . . . 85 100 50 34 . . 8 81 100 93 . . . . 33 100 42 . . . . 82 63 31 . Level 1 23 | . 72 . 22 45 . . 7 . . 35 . 1 . . . . 14 . 40 15 . 2 15 . . 6 . . . . 45 . 27 . . . . 17 36 64 28 Level 2 20 | . . . 33 21 . . 35 30 69 5 . . . . . . . . 8 14 . 97 30 18 . . . . . . 20 . 30 . . . . . . 3 71 Level 3 9 | . . . 36 . . . 10 64 30 . . . . . . . . . . 19 100 . 44 . . . . . . . . . . . . . . . . . . Level 4 . | . . . . . . . . 5 . . . . . . . . . . . 9 . . . . . . . . . . . . . . . . . . . . . Level 5 . | . . . . . . . . . . . . . . . . . . . . 6 . . . . . . . . . . . . . . . . . . . . . High Security . | . . . . . . . . . . . . . . . . . . . . . . . . . . . . . . . . . . . . . . . . . . Max Security . | . . . . . . . . . . . . . . . . . . . . . . . . . . . . . . . . . . . . . . . . . . Squads Dispatched 127 | . 6 . 3 1 . . 8 . 4 11 . 11 . . . . 10 . 10 3 . . 8 1 . 9 . 1 . . 11 . 12 . . . . 8 . 5 5 Investigation 67 | . 3 . 2 1 . . 4 . 2 8 . 6 . . . . 7 . 7 1 . . 3 . . 6 . . . . 4 . 6 . . . . 4 . 3 . Extermination 24 | . . . . . . . . . . 3 . 3 . . . . . . 2 . . . . 1 . 2 . . . . 4 . 4 . . . . 2 . 1 2 Reinforcement 28 | . 3 . . . . . 3 . 1 . . 2 . . . . 3 . 1 . . . 4 . . . . . . . 3 . 2 . . . . 2 . 1 3 Assault 7 | . . . 1 . . . 1 . . . . . . . . . . . . 2 . . 1 . . 1 . 1 . . . . . . . . . . . . . Garrison 1 | . . . . . . . . . 1 . . . . . . . . . . . . . . . . . . . . . . . . . . . . . . . . Intercept . | . . . . . . . . . . . . . . . . . . . . . . . . . . . . . . . . . . . . . . . . . . Searches Triggered 4 | . . . . . . . . . . . . . . . . . . . 1 . . . . . . . . . . . 3 . . . . . . . . . . Construction Impeded 3 | . . . . . . . . . . . . 1 . . . . . . . . . . 1 . . . . . . . . . 1 . . . . . . . . Haulers Reinforced 3 | . . . . . . . . . . . . . . . . . 1 . . . . . . . . . . . . . 1 . . . . . . 1 . . . Active Scanning Responses . | . . . . . . . . . . . . . . . . . . . . . . . . . . . . . . . . . . . . . . . . . . Cargo Convoy Interrupts 1 | . . . . . . . . . . . . 1 . . . . . . . . . . . . . . . . . . . . . . . . . . . . . Stealth | -11 -10 -10 -9 -9 -9 -8 -8 -8 -8 -7 -7 -7 -7 -7 -7 -6 -6 -6 -6 -6 -6 -6 -6 -5 -5 -5 -5 -5 -5 -4 -4 -4 -4 -4 -4 -4 -3 -3 -2 -1 -1 --------- Run | Yrd Mat Min Mat Min Exi Min Mat Gar Mat Fac Was Fac Low Low Dat Pro Fac Was Fac Ext Cet Arc Hub Fac Was Fac Upp Upp War Pro Fac Was Fac Upp Upp Zhi Pro Res Res Acc Com Distress Signals 42 | . 3 . 4 . . . 5 . . 5 . 1 . . . . 4 . 1 . 1 . . 1 . . . . . . 4 . 3 . . . . 3 4 1 2 Communications Jammed . | . . . . . . . . . . . . . . . . . . . . . . . . . . . . . . . . . . . . . . . . . . Distress Signals . | . . . . . . . . . . . . . . . . . . . . . . . . . . . . . . . . . . . . . . . . . . Times Spotted 716 | . 45 3 62 8 . 3 58 20 12 39 . 13 1 10 4 8 12 4 23 34 5 33 21 9 6 17 . 2 15 4 89 6 42 6 11 . 7 31 3 26 24 Peak Tracking Total 19 | . 4 3 8 2 . 3 6 4 2 7 . 5 1 10 4 8 3 4 8 12 5 1 6 3 6 5 . 5 7 2 19 6 11 5 10 . 7 7 2 10 5 Tactical Retreats 126 | . 2 . 4 . . . 3 5 . 11 . 2 . 1 . 3 5 . 8 2 . . 1 2 . 6 . 1 . . 26 . 17 3 3 . 1 10 . 7 3 Traps | -11 -10 -10 -9 -9 -9 -8 -8 -8 -8 -7 -7 -7 -7 -7 -7 -6 -6 -6 -6 -6 -6 -6 -6 -5 -5 -5 -5 -5 -5 -4 -4 -4 -4 -4 -4 -4 -3 -3 -2 -1 -1 ------- Run | Yrd Mat Min Mat Min Exi Min Mat Gar Mat Fac Was Fac Low Low Dat Pro Fac Was Fac Ext Cet Arc Hub Fac Was Fac Upp Upp War Pro Fac Was Fac Upp Upp Zhi Pro Res Res Acc Com Traps Triggered 30 | . 2 . 1 1 . . 1 . . 3 . . . . . . 4 . 1 1 . . 1 1 . 2 . . . . 5 . 3 . . . . 1 . . 3 Indirectly 1 | . . . . . . . . . . . . . . . . . . . . . . . . . . . . . . . 1 . . . . . . . . . . Trap Hack Attempts 35 | . . . . . . . . . . 2 . 25 . . . . 2 . . 4 . . . 2 . . . . . . . . . . . . . . . . . Triggered 1 | . . . . . . . . . . . . 1 . . . . . . . . . . . . . . . . . . . . . . . . . . . . . Disarmed 19 | . . . . . . . . . . . . 2 . . . . . . . . . . . . . . . . . . 6 . . . . . . 5 . 6 . Reprogrammed 89 | . . . . . . . . . . 2 . 6 . . . . 13 . 12 3 . . . 5 . 12 . . . . 1 . 24 . . . . 6 . 5 . Reused 51 | . . . . . . . . . . . . 2 . . . . 1 . 10 1 . . . 1 . 5 . . . . . . 8 . . . . 2 . 5 16 Traps Extracted 18 | . . . . . . . . . . 1 . 6 . . . . 1 . . . . . . . . 2 . . 8 . . . . . . . . . . . . Installed 18 | . . . . . . . . . . . . 2 . . . . . . . . . . . . . . . . . . . . . . . . . . . . 16 Triggered 60 | . . . . . . . . . . . . 2 . . . 2 1 . 10 1 . . . 1 . 5 . . 7 . . . 8 . . . . 2 . 5 16 Most Traps Carried 16 | . . . . . . . . . . 1 1 5 5 5 5 5 6 6 6 6 6 6 6 6 6 8 8 8 16 16 16 16 16 16 16 16 16 16 16 16 16 Objects Rigged 6 | . . . . . . . . . . . . . . . . . . . . . . . . . . . . . . . 6 . . . . . . . . . . Exploded 5 | . . . . . . . . . . . . . . . . . . . . . . . . . . . . . . . 5 . . . . . . . . . . Machines | -11 -10 -10 -9 -9 -9 -8 -8 -8 -8 -7 -7 -7 -7 -7 -7 -6 -6 -6 -6 -6 -6 -6 -6 -5 -5 -5 -5 -5 -5 -4 -4 -4 -4 -4 -4 -4 -3 -3 -2 -1 -1 ---------- Run | Yrd Mat Min Mat Min Exi Min Mat Gar Mat Fac Was Fac Low Low Dat Pro Fac Was Fac Ext Cet Arc Hub Fac Was Fac Upp Upp War Pro Fac Was Fac Upp Upp Zhi Pro Res Res Acc Com Machines Disabled 49 | . 1 . 4 . . . 5 3 1 3 . 1 . . 1 . . . 1 4 . 3 3 . . 3 . 1 . . 12 . 1 . . . . . . 2 . Max in Single Turn 2 | . 1 . 1 . . . 1 1 1 1 . 1 . . 1 . . . 1 2 . 2 1 . . 1 . 1 . . 2 . 1 . . . . . . 2 . Garrison Access 27 | . . . . . . . . . . 4 . 3 . . . . 3 . 3 . . . 1 2 . 2 . . . . 3 . 3 . . . . 1 . 2 . Network Hub 4 | . . . . . . . . . . . . . . . . . . . . . . . 4 . . . . . . . . . . . . . . . . . . Machines Repaired . | . . . . . . . . . . . . . . . . . . . . . . . . . . . . . . . . . . . . . . . . . . Machines Dismantled . | . . . . . . . . . . . . . . . . . . . . . . . . . . . . . . . . . . . . . . . . . . Machines Sabotaged 2 | . . . . . . . . . . . . . . . . . . . . . . . 2 . . . . . . . . . . . . . . . . . . Overloaded Fab Kills . | . . . . . . . . . . . . . . . . . . . . . . . . . . . . . . . . . . . . . . . . . . Hacking | -11 -10 -10 -9 -9 -9 -8 -8 -8 -8 -7 -7 -7 -7 -7 -7 -6 -6 -6 -6 -6 -6 -6 -6 -5 -5 -5 -5 -5 -5 -4 -4 -4 -4 -4 -4 -4 -3 -3 -2 -1 -1 --------- Run | Yrd Mat Min Mat Min Exi Min Mat Gar Mat Fac Was Fac Low Low Dat Pro Fac Was Fac Ext Cet Arc Hub Fac Was Fac Upp Upp War Pro Fac Was Fac Upp Upp Zhi Pro Res Res Acc Com Machines Accessed 322 | . 8 1 15 2 2 1 16 2 4 32 . 23 . . 4 . 20 . 30 9 1 . 5 15 . 21 . 1 5 . 29 . 29 . . 5 . 14 3 14 11 Terminals 178 | . 5 1 12 . . 1 11 2 1 16 . 10 . . . . 8 . 16 9 1 . 4 7 . 12 . . . . 16 . 16 . . . . 9 2 9 10 Fabricators 44 | . . . . . . . . . . 6 . 6 . . . . 6 . 6 . . . . . . 5 . . . . 5 . 5 . . . . 2 . 3 . Repair Stations 26 | . 1 . . . . . 2 . . 3 . 3 . . . . 2 . 2 . . . . 3 . 1 . . . . 4 . 3 . . . . 1 . . 1 Recycling Units 22 | . 2 . 2 . . . 2 . 1 2 . 1 . . . . 1 . 3 . . . . 2 . 1 . . . . 1 . 2 . . . . 1 1 . . Scanalyzers 4 | . . . 1 . . . . . 1 1 . . . . . . . . . . . . . 1 . . . . . . . . . . . . . . . . . Garrison Access 29 | . . . . . . . 1 . 1 4 . 3 . . . . 3 . 3 . . . 1 2 . 2 . . . . 3 . 3 . . . . 1 . 2 . Total Hacks 1213 | . 20 4 38 2 2 2 36 5 7 91 . 71 . . 30 . 68 . 92 15 1 . 8 54 . 113 . 1 14 . 147 . 153 . . 18 . 103 14 69 35 Successful 933 | . 8 1 14 2 2 . 18 1 3 74 . 64 . . 30 . 56 . 73 11 1 . 5 48 . 88 . 1 14 . 120 . 133 . . 18 . 78 8 47 15 Failed 278 | . 12 3 23 . . 2 18 4 4 17 . 7 . . . . 12 . 19 4 . . 3 6 . 25 . . . . 27 . 20 . . . . 25 6 21 20 Catastrophic 47 | . 3 1 5 . . . 1 2 2 3 . . . . . . 2 . 6 . . . . . . 3 . . . . 3 . 4 . . . . 2 1 5 4 Database Lockouts 2 | . . . 1 . . . . . . . . . . . . . . . . . . . . . . . . . . . . . . . . . . . . 1 . Manual 627 | . 18 4 27 . 1 2 25 1 3 42 . 26 . . . . 33 . 57 7 1 . 6 26 . 71 . . 1 . 77 . 66 . . . . 64 12 36 21 Terminals 761 | . 15 4 33 . . 2 27 5 2 51 . 29 . . . . 34 . 50 15 1 . 7 34 . 85 . . . . 99 . 97 . . . . 81 10 48 32 Fabricators 188 | . . . . . . . . . . 23 . 26 . . . . 24 . 28 . . . . . . 20 . . . . 17 . 21 . . . . 11 . 18 . Repair Stations 100 | . 2 . . . . . 5 . . 6 . 10 . . . . 4 . 4 . . . . 9 . 4 . . . . 23 . 24 . . . . 6 . . 3 Recycling Units 52 | . 3 . 3 . . . 2 . 1 3 . 3 . . . . 1 . 7 . . . . 7 . 1 . . . . 5 . 8 . . . . 4 4 . . Scanalyzers 8 | . . . 2 . . . . . 2 2 . . . . . . . . . . . . . 2 . . . . . . . . . . . . . . . . . Garrison Access 37 | . . . . . . . 2 . 2 6 . 3 . . . . 5 . 3 . . . 1 2 . 3 . . . . 3 . 3 . . . . 1 . 3 . Terminal Hacks 475 | . 2 1 8 2 2 . 7 1 . 28 . 20 . . 30 . 21 . 27 8 1 . 2 22 . 53 . 1 14 . 58 . 69 . . 18 . 44 2 23 11 Record 30 | . . . . . 1 . . . . . . . . . 11 . . . . . . . . . . . . 1 8 . 1 . . . . 6 . . . . 2 Part Schematic 46 | . 2 . 2 . . . 1 . . 3 . 2 . . 11 . 3 . 4 . . . . . . 6 . . . . 1 . 3 . . 4 . 2 . 2 . Robot Schematic 6 | . . . . . . . . . . . . . . . 5 . . . . . . . . . . . . . . . 1 . . . . . . . . . . Robot Analysis 15 | . . 1 . . . . . . . 1 . . . . . . 1 . . . . . . . . 1 . . . . 2 . 1 . . 4 . 3 1 . . Prototype ID Bank 30 | . . . . . . . 1 . . 2 . . . . 3 . 1 . 1 . . . . 1 . 3 . . 4 . 1 . 5 . . 4 . 3 . 1 . Open Door 14 | . . . . 2 . . . . . . . . . . . . . . 1 4 1 . . . . . . . 2 . . . . . . . . . . 3 1 Open DSF 1 | . . . . . . . . . . . . . . . . . . . 1 . . . . . . . . . . . . . . . . . . . . . . Level Access Points 8 | . . . . . . . . . . . . . . . . . 1 . . . . . . . . 1 . . . . 2 . 2 . . . . 1 1 . . Branch Access Points 7 | . . . . . . . . . . . . 1 . . . . . . 1 . . . . . . 2 . . . . . . 1 . . . . 1 . 1 . Emergency Access Points 17 | . . . . . . . . . . . . . . . . . 1 . . . . . . 1 . 3 . . . . 2 . 5 . . . . 5 . . . Machine Index 8 | . . . . . . . . . . 1 . 1 . . . . 1 . 1 . . . . 1 . 1 . . . . 1 . 1 . . . . . . . . Terminal Index 4 | . . . 1 . . . . . . . . 1 . . . . . . . . . . . . . . . . . . . . . . . . . . . 1 1 Fabricator Index 1 | . . . . . . . . . . . . . . . . . . . . . . . . . . . . . . . . . . . . . . . . 1 . Repair Station Index 1 | . . . . . . . . . . . . 1 . . . . . . . . . . . . . . . . . . . . . . . . . . . . . Recycling Unit Index 4 | . . . 1 . . . 1 . . . . . . . . . . . . . . . . . . . . . . . . . . . . . . . . 1 1 Alert Level 28 | . . . 1 . . . . . . 2 . 2 . . . . . . 1 1 . . . 1 . 4 . . . . 6 . 6 . . . . 3 . 1 . Unreport Threat 28 | . . . . . . . . . . 2 . 3 . . . . . . . 1 . . . 3 . 3 . . . . 7 . 3 . . . . 4 . 2 . Locate Traps 43 | . . . 1 . . . 1 . . 4 . . . . . . 2 . 5 1 . . 1 3 . 3 . . . . 7 . 9 . . . . 3 . 2 1 Disarm Traps 3 | . . . . . . . . . . . . . . . . . . . . . . . . . . . . . . . 1 . . . . . . 1 . 1 . Reprogram Traps 18 | . . . . . . . . . . 1 . . . . . . 3 . 2 . . . . 1 . 3 . . . . 1 . 5 . . . . 1 . 1 . Dispatch Records 1 | . . . . . . . . . . 1 . . . . . . . . . . . . . . . . . . . . . . . . . . . . . . . Maintenance Status 4 | . . . . . . . . . . 1 . . . . . . . . 1 . . . . 1 . 1 . . . . . . . . . . . . . . . Patrol Status 4 | . . . . . . . . . . . . . . . . . . . . . . . . . . 1 . . . . . . 2 . . . . 1 . . . Transport Status 1 | . . . . . . . . . . . . . . . . . . . . . . . . . . 1 . . . . . . . . . . . . . . . Reinforcement Status 1 | . . . . . . . . . . . . . . . . . . . . . . . . . . . . . . . . . . . . . . 1 . . . Recall Investigation 9 | . . . . . . . . . . . . 1 . . . . . . . . . . . . . 3 . . . . 2 . . . . . . 3 . . . Recall Extermination 17 | . . . . . . . . . . 1 . 2 . . . . . . 1 . . . . . . 2 . . . . 3 . 4 . . . . 2 . 1 1 Recall Reinforcements 5 | . . . . . . . . . . . . 2 . . . . . . . . . . . . . . . . . . . . 2 . . . . 1 . . . Recall Assault 1 | . . . . . . . . . . . . . . . . . . . . . . . . . . . . . . . 1 . . . . . . . . . . Hauler Manifests 24 | . . . 1 . . . 1 . . 1 . 2 . . . . 2 . 1 . . . . 2 . 5 . . . . 4 . 3 . . . . 1 . 1 . Registered Components 8 | . . . . . . . . . . 1 . . . . . . 1 . 1 . . . . 1 . . . . . . 1 . 2 . . . . 1 . . . Registered Prototypes 10 | . . . . . . . . . . 1 . 1 . . . . 1 . 1 . . . . 1 . 1 . . . . 1 . 1 . . . . 1 . 1 . Zone Layout 74 | . . . 1 . . . 2 . . 6 . 1 . . . . 4 . 5 1 . . 1 6 . 9 . . . . 13 . 14 . . . . 6 . 3 2 Security Stations 1 | . . . . . . . . 1 . . . . . . . . . . . . . . . . . . . . . . . . . . . . . . . . . Derelict Proto ID Bank 1 | . . . . . 1 . . . . . . . . . . . . . . . . . . . . . . . . . . . . . . . . . . . . Disengage Seal 2 | . . . . . . . . . . . . . . . . . . . . . . . . . . . . . . . . . . . . . . . . . 2 Fabricator Hacks 125 | . . . . . . . . . . 15 . 20 . . . . 16 . 17 . . . . . . 13 . . . . 12 . 14 . . . . 6 . 12 . Network Status 4 | . . . . . . . . . . 2 . 1 . . . . . . . . . . . . . . . . . . . . 1 . . . . . . . . Load Schematic 80 | . . . . . . . . . . 9 . 12 . . . . 11 . 11 . . . . . . 9 . . . . 8 . 9 . . . . 4 . 7 . Build 41 | . . . . . . . . . . 4 . 7 . . . . 5 . 6 . . . . . . 4 . . . . 4 . 4 . . . . 2 . 5 . Repair Station Hacks 88 | . 2 . . . . . 4 . . 5 . 8 . . . . 3 . 4 . . . . 8 . 4 . . . . 22 . 20 . . . . 6 . . 2 Scan Component 43 | . 1 . . . . . 2 . . 2 . 4 . . . . 1 . 2 . . . . 4 . 2 . . . . 11 . 10 . . . . 3 . . 1 Repair 43 | . 1 . . . . . 2 . . 2 . 4 . . . . 1 . 2 . . . . 4 . 2 . . . . 11 . 10 . . . . 3 . . 1 Refit 2 | . . . . . . . . . . 1 . . . . . . 1 . . . . . . . . . . . . . . . . . . . . . . . . Recycling Unit Hacks 11 | . . . . . . . . . . 1 . . . . . . . . 1 . . . . 2 . . . . . . 1 . 4 . . . . 1 1 . . Report Inventory 1 | . . . . . . . . . . . . . . . . . . . . . . . . . . . . . . . . . 1 . . . . . . . . Retrieve Matter 1 | . . . . . . . . . . . . . . . . . . . . . . . . . . . . . . . . . 1 . . . . . . . . Retrieve Components 9 | . . . . . . . . . . 1 . . . . . . . . 1 . . . . 2 . . . . . . 1 . 2 . . . . 1 1 . . Scanalyzer 8 | . . . 2 . . . . . 2 2 . . . . . . . . . . . . . 2 . . . . . . . . . . . . . . . . . Insert Component 4 | . . . 1 . . . . . 1 1 . . . . . . . . . . . . . 1 . . . . . . . . . . . . . . . . . Analyze 4 | . . . 1 . . . . . 1 1 . . . . . . . . . . . . . 1 . . . . . . . . . . . . . . . . . Garrison Access Hacks 26 | . . . . . . . 1 . . 4 . 3 . . . . 3 . 3 . . . . 2 . 1 . . . . 3 . 3 . . . . 1 . 2 . Unlock Access 1 | . . . . . . . 1 . . . . . . . . . . . . . . . . . . . . . . . . . . . . . . . . . . Seal Access 25 | . . . . . . . . . . 4 . 3 . . . . 3 . 3 . . . . 2 . 1 . . . . 3 . 3 . . . . 1 . 2 . Unauthorized Hacks 199 | . 4 . 4 . . . 6 . 1 19 . 13 . . . . 13 . 21 3 . . 3 12 . 17 . . . . 24 . 23 . . . . 20 4 10 2 Terminals 101 | . 2 . 2 . . . 4 . . 10 . 4 . . . . 4 . 5 3 . . 2 7 . 8 . . . . 16 . 12 . . . . 13 1 6 2 Track 5 | . . . . . . . . . . 1 . . . . . . . . . . . . . 1 . . . . . . . . . . . . . 2 . 1 . Assimilate 25 | . . . . . . . 2 . . 5 . 2 . . . . 1 . . . . . . 2 . 5 . . . . 2 . 2 . . . . 2 . 1 1 Botnet 33 | . . . . . . . 1 . . 2 . 1 . . . . 2 . 2 . . . . 2 . 3 . . . . 6 . 4 . . . . 6 1 2 1 Detonate 2 | . . . . . . . . . . . . . . . . . . . . . . . . . . . . . . . 2 . . . . . . . . . . Disrupt 16 | . . . . . . . . . . 1 . . . . . . . . 1 3 . . . 1 . . . . . . 3 . 4 . . . . 2 . 1 . Operators 18 | . 2 . 2 . . . 1 . . 1 . 1 . . . . 1 . 2 . . . . 1 . . . . . . 3 . 2 . . . . 1 . 1 . Sabotage 2 | . . . . . . . . . . . . . . . . . . . . . . . 2 . . . . . . . . . . . . . . . . . . Fabricators 59 | . . . . . . . . . . 7 . 6 . . . . 8 . 11 . . . . . . 7 . . . . 5 . 7 . . . . 4 . 4 . Prioritize 18 | . . . . . . . . . . 2 . 1 . . . . 2 . 4 . . . . . . 2 . . . . 1 . 2 . . . . 2 . 2 . Haulers 2 | . . . . . . . . . . . . . . . . . . . 2 . . . . . . . . . . . . . . . . . . . . . . Recompile 39 | . . . . . . . . . . 5 . 5 . . . . 6 . 5 . . . . . . 5 . . . . 4 . 5 . . . . 2 . 2 . Repair Stations . | . . . . . . . . . . . . . . . . . . . . . . . . . . . . . . . . . . . . . . . . . . Recycling Units 37 | . 2 . 2 . . . 2 . 1 2 . 3 . . . . 1 . 5 . . . . 5 . 1 . . . . 3 . 4 . . . . 3 3 . . Reject 9 | . . . . . . . . . . . . 1 . . . . . . 2 . . . . 2 . . . . . . 1 . 1 . . . . 1 1 . . Recyclers 10 | . . . . . . . . . . 1 . 1 . . . . 1 . 1 . . . . 1 . 1 . . . . 1 . 1 . . . . 1 1 . . Mask 10 | . . . . . . . . . . . . 1 . . . . . . 2 . . . . 2 . . . . . . 1 . 2 . . . . 1 1 . . Tunnel 8 | . 2 . 2 . . . 2 . 1 1 . . . . . . . . . . . . . . . . . . . . . . . . . . . . . . . Scanalyzers . | . . . . . . . . . . . . . . . . . . . . . . . . . . . . . . . . . . . . . . . . . . Garrison Access 2 | . . . . . . . . . . . . . . . . . . . . . . . 1 . . 1 . . . . . . . . . . . . . . . Reprogram 2 | . . . . . . . . . . . . . . . . . . . . . . . 1 . . 1 . . . . . . . . . . . . . . . Data Cores Recovered 3 | . . . . . . . . . . . . . . . . . . . . 1 . . . . . . . . . . . . 1 . . . . . . . 1 Used . | . . . . . . . . . . . . . . . . . . . . . . . . . . . . . . . . . . . . . . . . . . Hacking Detections 171 | . 6 1 12 . . 1 14 2 2 21 . 15 . . . . 11 . 16 5 1 . 2 8 . 9 . . . . 8 . 14 . . . . 7 2 6 8 Full Trace Events 14 | . 1 . . . . . 1 1 1 2 . 1 . . . . 1 . 1 1 . . . . . 1 . . . . . . . . . . . 2 . 1 . Feedback Events 2 | . . . . . . . . . . 1 . . . . . . . . . . . . . . . . . . . . . . . . . . . 1 . . . Corruption 1 | . . . . . . . . . . 1 . . . . . . . . . . . . . . . . . . . . . . . . . . . . . . . Hackware Fried 1 | . . . . . . . . . . . . . . . . . . . . . . . . . . . . . . . . . . . . . . 1 . . . Feedback Blocked . | . . . . . . . . . . . . . . . . . . . . . . . . . . . . . . . . . . . . . . . . . . Robot Schematics Acquired 6 | . . . . . . . . . . . . . . . 5 . . . . . . . . . . . . . . . 1 . . . . . . . . . . Robots Built . | . . . . . . . . . . . . . . . . . . . . . . . . . . . . . . . . . . . . . . . . . . Authchips . | . . . . . . . . . . . . . . . . . . . . . . . . . . . . . . . . . . . . . . . . . . Time . | . . . . . . . . . . . . . . . . . . . . . . . . . . . . . . . . . . . . . . . . . . Total Robot Build Rating . | . . . . . . . . . . . . . . . . . . . . . . . . . . . . . . . . . . . . . . . . . . Part Schematics Acquired 50 | . 2 . 3 . . . 1 . 1 4 . 2 . . 11 . 3 . 4 . . . . 1 . 6 . . . . 1 . 3 . . 4 . 2 . 2 . Parts Built 45 | . . . . . . . . . . 4 . 7 . . . . 6 . 6 . . . . . . 6 . . . . 4 . 5 . . . . 2 . 5 . Authchips 39 | . . . . . . . . . . 4 . 6 . . . . 5 . 6 . . . . . . 4 . . . . 4 . 4 . . . . 2 . 4 . Time 3101 | . . . . . . . . . . 247 . 436 . . . . 243 . 582 . . . . . . 356 . . . . 466 . 259 . . . . 296 . 216 . Total Part Build Rating 277 | . . . . . . . . . . 17 . 35 . . . . 34 . 35 . . . . . . 40 . . . . 27 . 40 . . . . 18 . 31 . Parts Repaired 43 | . 1 . . . . . 2 . . 2 . 4 . . . . 1 . 2 . . . . 4 . 2 . . . . 11 . 10 . . . . 3 . . 1 Time 1928 | . 32 . . . . . 64 . . 41 . 147 . . . . 35 . 57 . . . . 173 . 75 . . . . 731 . 412 . . . . 125 . . 36 Parts Recycled . | . . . . . . . . . . . . . . . . . . . . . . . . . . . . . . . . . . . . . . . . . . Recycled Matter . | . . . . . . . . . . . . . . . . . . . . . . . . . . . . . . . . . . . . . . . . . . Retrieved Matter . | . . . . . . . . . . . . . . . . . . . . . . . . . . . . . . . . . . . . . . . . . . Retrieved Components 20 | . . . . . . . . . . 1 . . . . . . . . 8 . . . . 3 . . . . . . 3 . 4 . . . . 1 . . . Parts Scanalyzed 4 | . . . 1 . . . . . 1 1 . . . . . . . . . . . . . 1 . . . . . . . . . . . . . . . . . Part Schematics Acquired 4 | . . . 1 . . . . . 1 1 . . . . . . . . . . . . . 1 . . . . . . . . . . . . . . . . . Parts Damaged . | . . . . . . . . . . . . . . . . . . . . . . . . . . . . . . . . . . . . . . . . . . Bothacking | -11 -10 -10 -9 -9 -9 -8 -8 -8 -8 -7 -7 -7 -7 -7 -7 -6 -6 -6 -6 -6 -6 -6 -6 -5 -5 -5 -5 -5 -5 -4 -4 -4 -4 -4 -4 -4 -3 -3 -2 -1 -1 ------------ Run | Yrd Mat Min Mat Min Exi Min Mat Gar Mat Fac Was Fac Low Low Dat Pro Fac Was Fac Ext Cet Arc Hub Fac Was Fac Upp Upp War Pro Fac Was Fac Upp Upp Zhi Pro Res Res Acc Com Used RIF Installer . | . . . . . . . . . . . . . . . . . . . . . . . . . . . . . . . . . . . . . . . . . . Robots Hacked 13 | . . . . . . . . . . 1 . . . . 1 . 3 . 2 . . . . 1 . 1 . . . . 1 . . . . . . . 2 . 1 Non-combat 9 | . . . . . . . . . . 1 . . . . . . 3 . 2 . . . . 1 . 1 . . . . 1 . . . . . . . . . . Combat 3 | . . . . . . . . . . . . . . . 1 . . . . . . . . . . . . . . . . . . . . . . . 2 . . Robot Hacks Applied 13 | . . . . . . . . . . 1 . . . . 1 . 3 . 2 . . . . 1 . 1 . . . . 1 . . . . . . . 3 . . parse_system 4 | . . . . . . . . . . . . . . . 1 . . . . . . . . . . . . . . . . . . . . . . . 3 . . no_distress 3 | . . . . . . . . . . . . . . . . . . . 2 . . . . . . 1 . . . . . . . . . . . . . . . find_chute 4 | . . . . . . . . . . 1 . . . . . . 2 . . . . . . . . . . . . . 1 . . . . . . . . . . find_recycling 2 | . . . . . . . . . . . . . . . . . 1 . . . . . . 1 . . . . . . . . . . . . . . . . . Manual 1 | . . . . . . . . . . . . . . . . . . . . . . . . . . . . . . . . . . . . . . . . . 1 Relay Couplers Released 3 | . . . . . . . . . . . . . . . . . . . . . . . 2 . . 1 . . . . . . . . . . . . . . . Machine Destruction 3 | . . . . . . . . . . . . . . . . . . . . . . . 2 . . 1 . . . . . . . . . . . . . . . Fabnet Peak Effective % . | . . . . . . . . . . . . . . . . . . . . . . . . . . . . . . . . . . . . . . . . . . Robots Rewired 16 | . . . . . . . . 6 . . . . . . . . . . . 10 . . . . . . . . . . . . . . . . . . . . . Allies Hacked . | . . . . . . . . . . . . . . . . . . . . . . . . . . . . . . . . . . . . . . . . . . Hacks Repelled . | . . . . . . . . . . . . . . . . . . . . . . . . . . . . . . . . . . . . . . . . . . Allies | -11 -10 -10 -9 -9 -9 -8 -8 -8 -8 -7 -7 -7 -7 -7 -7 -6 -6 -6 -6 -6 -6 -6 -6 -5 -5 -5 -5 -5 -5 -4 -4 -4 -4 -4 -4 -4 -3 -3 -2 -1 -1 -------- Run | Yrd Mat Min Mat Min Exi Min Mat Gar Mat Fac Was Fac Low Low Dat Pro Fac Was Fac Ext Cet Arc Hub Fac Was Fac Upp Upp War Pro Fac Was Fac Upp Upp Zhi Pro Res Res Acc Com Total Allies 51 | . . . . 1 . . 1 7 . 4 . 2 . . . . 1 . . 16 5 . 3 2 . 4 . . . . 1 . 1 . . . . 2 . . 1 Largest Group 10 | . . . . 1 1 . 1 4 1 2 . 2 . . . . 1 . . 10 10 10 8 2 . 2 . . . . 1 . 1 . . . . 1 . . 1 Highest-Rated Group 729 | . . . . 31 31 . 10 76 15 36 . 36 . . . . 26 . . 413 729 729 553 52 . 52 . . . . 10 . 26 . . . . 26 . . 45 Highest-Rated Ally 159 | . . . . 31 31 . 10 31 15 26 . 26 . . . . 26 . . 159 146 146 96 26 . 26 . . . . 10 . 26 . . . . 26 . . 45 Total Orders 31 | . . . . . . . . . . . . . . . . . . . 1 14 3 2 2 5 . 2 . . . . . . . . . . . 2 . . . STAY 3 | . . . . . . . . . . . . . . . . . . . . . . 1 . . . 1 . . . . . . . . . . . 1 . . . FOLLOW 3 | . . . . . . . . . . . . . . . . . . . . . . 1 . . . 1 . . . . . . . . . . . 1 . . . RETURN 25 | . . . . . . . . . . . . . . . . . . . 1 14 3 . 2 5 . . . . . . . . . . . . . . . . . Ally Attacks 456 | . . . . . . . . 33 8 . . . . . . . . . 11 201 51 39 96 17 . . . . . . . . . . . . . . . . . Total Damage 11320 | . . . . . . . . 446 152 . . . . . . . . . 285 5160 1299 1372 2251 355 . . . . . . . . . . . . . . . . . Kills 75 | . . . . . . . . 8 1 . . . . . . . . . 2 37 6 5 14 2 . . . . . . . . . . . . . . . . . Allies Corrupted 6 | . . . . . . . . . . . . . . . . . . . . . . . 5 . . . . . . . . . . . . . . . . . 1 Allies Melted 3 | . . . . . . . . 1 1 . . . . . . . . . . . . . . . . . . . . . . . . . . . . . 1 . . Intel | -11 -10 -10 -9 -9 -9 -8 -8 -8 -8 -7 -7 -7 -7 -7 -7 -6 -6 -6 -6 -6 -6 -6 -6 -5 -5 -5 -5 -5 -5 -4 -4 -4 -4 -4 -4 -4 -3 -3 -2 -1 -1 ------- Run | Yrd Mat Min Mat Min Exi Min Mat Gar Mat Fac Was Fac Low Low Dat Pro Fac Was Fac Ext Cet Arc Hub Fac Was Fac Upp Upp War Pro Fac Was Fac Upp Upp Zhi Pro Res Res Acc Com Robot Analysis Total 15 | . . 1 . . . . . . . 1 . . . . . . 1 . . . . . . . . 1 . . . . 2 . 1 . . 4 . 3 1 . . Derelict Logs Recovered 12 | . . 2 . 1 . . . . . . . . . . . 1 . . . . . . . . . . 1 1 . 2 . . . 2 2 . . . . . . Drone Launches 50 | . . . . . . . . . . . . . . . . . . . 2 33 5 . 4 6 . . . . . . . . . . . . . . . . . Drone Recoveries 48 | . . . . . . . . . . . . . . . . . . . 2 32 5 . 3 6 . . . . . . . . . . . . . . . . . Exploration | -11 -10 -10 -9 -9 -9 -8 -8 -8 -8 -7 -7 -7 -7 -7 -7 -6 -6 -6 -6 -6 -6 -6 -6 -5 -5 -5 -5 -5 -5 -4 -4 -4 -4 -4 -4 -4 -3 -3 -2 -1 -1 ------------- Run | Yrd Mat Min Mat Min Exi Min Mat Gar Mat Fac Was Fac Low Low Dat Pro Fac Was Fac Ext Cet Arc Hub Fac Was Fac Upp Upp War Pro Fac Was Fac Upp Upp Zhi Pro Res Res Acc Com Turns Passed 35881 | 134 2193 1141 2156 1520 788 551 3215 1681 809 2018 105 1875 94 62 95 171 1300 43 1431 397 223 574 613 561 33 1642 167 73 423 79 2909 30 2775 178 75 40 101 1388 261 747 1210 Spaces Moved 49996 | 66 772 465 863 571 327 222 1464 785 408 4604 314 4301 267 215 159 513 3126 142 3349 534 188 213 278 1358 128 3145 582 261 853 224 5627 101 5726 467 236 122 313 2489 708 1514 1996 Core 57 | 4 . . . . . . . . . . . . . . . . . . 1 . . . . . . . . . . . 12 . 28 . . . . . . . 12 Treads 6508 | 62 772 465 863 571 327 222 1464 785 408 . . . . . . . . . . . 78 213 278 . . . . . . . . . . . . . . . . . . Legs . | . . . . . . . . . . . . . . . . . . . . . . . . . . . . . . . . . . . . . . . . . . Wheels . | . . . . . . . . . . . . . . . . . . . . . . . . . . . . . . . . . . . . . . . . . . Hover . | . . . . . . . . . . . . . . . . . . . . . . . . . . . . . . . . . . . . . . . . . . Flight 43431 | . . . . . . . . . . 4604 314 4301 267 215 159 513 3126 142 3348 534 110 . . 1358 128 3145 582 261 853 224 5615 101 5698 467 236 122 313 2489 708 1514 1984 Fastest Speed 11 | 50 160 240 160 240 240 240 160 162 162 27 27 23 25 18 23 27 20 16 14 26 26 160 160 23 24 11 23 11 14 23 14 27 27 28 28 28 25 26 28 24 24 Average Speed 48 | 153 232 240 192 240 240 240 160 162 162 30 27 26 25 24 26 28 25 23 24 26 82 160 160 24 25 23 23 22 22 23 26 27 28 28 28 28 27 30 28 26 33 Slowest Speed 1200 | 160 240 240 240 240 240 240 240 162 162 102 27 27 25 25 165 29 27 24 100 96 240 160 240 94 26 26 23 23 23 23 450 27 150 28 28 28 28 93 28 97 1200 Overloaded Moves 97 | . . . . . . . . . . . . . . 11 . 19 5 2 11 . . . . . . 4 . 12 10 . 13 . . . . . 10 . . . . Propulsion Burnouts . | . . . . . . . . . . . . . . . . . . . . . . . . . . . . . . . . . . . . . . . . . . Robots Hopped 235 | . . . . . . . . . . 63 . 19 . 3 . 1 23 2 17 . . . . 5 2 11 . . 1 . 29 . 37 . . . 1 4 4 12 1 Cave-ins Triggered 1 | . . . . . . . . . . . . . . . . . . . . . . . . . . . . . . . 1 . . . . . . . . . . Time Travels 1 | . . . . . . . . . . . . . . . 1 . . . . . . . . . . . . . . . . . . . . . . . . . . Exploration Rate (%) 61 | 6 89 101 82 95 61 69 87 63 22 64 94 48 49 43 80 61 51 85 64 75 67 84 42 34 80 47 69 41 94 39 76 82 78 66 59 50 52 42 18 35 35 Regions Visited 41 Branch Regions 21 Pre-discovered Areas 20 | . 2 2 2 1 1 . 2 . 1 1 . . 1 . 1 . . . . . . . . . . . 1 . . 1 . . . . 1 3 . . . . . Known Exits Taken 13 | . . . . . . 1 1 . . . . 1 . . . 1 . . 1 . . . 1 . . 1 . . . 1 . . 1 . . . 1 1 1 1 . Unknown Exits Taken 19 | 1 1 1 1 1 1 . . . 1 . . . 1 1 1 . . . . 1 1 1 . . . . 1 1 1 . . . . 1 1 1 . . . . . Scrap Searched 18 | . . 1 . 2 . 1 . . . . . . 2 1 . 3 . . . . . . . . . . 3 . . 2 . . . 2 . . 1 . . . . Spaces Dug 620 | . 8 . 3 . . . 10 1 . 59 . 57 1 . 6 . 42 . 47 . . . . 18 . 48 1 1 20 1 92 . 92 7 1 . 4 60 5 17 19 Terrain Destroyed 1046 | . 12 . 22 . . . 15 1 . 59 . 108 1 . 6 . 44 . 67 32 . 7 15 18 . 51 1 1 35 1 195 . 153 42 1 . 4 97 5 32 21 Melee 505 | . . . 2 . . . 8 1 . 41 . 44 1 . 6 . 35 . 36 . . . . 13 . 47 1 1 20 1 70 . 76 7 1 . 4 55 3 15 17 Projectile 146 | . 12 . 1 . . . 7 . . . . . . . . . . . 12 . . 7 15 5 . 4 . . . . 37 . 30 . . . . 7 2 3 4 AOE 395 | . . . 19 . . . . . . 18 . 64 . . . . 9 . 19 32 . . . . . . . . 15 . 88 . 47 35 . . . 35 . 14 . Terrain Rammed . | . . . . . . . . . . . . . . . . . . . . . . . . . . . . . . . . . . . . . . . . . . Walls Destroyed . | . . . . . . . . . . . . . . . . . . . . . . . . . . . . . . . . . . . . . . . . . . Machines Disabled . | . . . . . . . . . . . . . . . . . . . . . . . . . . . . . . . . . . . . . . . . . . Actions | -11 -10 -10 -9 -9 -9 -8 -8 -8 -8 -7 -7 -7 -7 -7 -7 -6 -6 -6 -6 -6 -6 -6 -6 -5 -5 -5 -5 -5 -5 -4 -4 -4 -4 -4 -4 -4 -3 -3 -2 -1 -1 --------- Run | Yrd Mat Min Mat Min Exi Min Mat Gar Mat Fac Was Fac Low Low Dat Pro Fac Was Fac Ext Cet Arc Hub Fac Was Fac Upp Upp War Pro Fac Was Fac Upp Upp Zhi Pro Res Res Acc Com Total 58311 | 84 973 478 1183 692 332 231 2058 1018 511 5042 334 4850 285 220 181 534 3461 148 3776 759 256 370 377 1525 126 3869 602 270 1032 243 6764 102 6527 490 242 127 318 2977 740 1777 2427 Wait 5068 | . 60 . 133 84 . 5 326 52 31 277 11 350 7 9 . 19 210 5 246 132 48 56 33 79 . 499 11 7 122 14 861 . 552 7 6 . 2 326 4 189 295 Move 49513 | 65 771 464 862 570 326 221 1464 781 407 4486 313 4262 266 208 158 510 3081 138 3317 533 187 212 277 1348 124 3122 581 260 850 223 5573 100 5655 466 235 121 310 2480 699 1493 1994 Hop 209 | . . . . . . . . . . 55 . 19 . 3 . 1 22 1 14 . . . . 5 1 11 . . 1 . 25 . 33 . . . 1 4 4 8 1 Pick Up 279 | 6 16 2 20 7 1 . 14 1 6 22 2 12 . . 1 . 20 . 22 9 1 6 3 8 . 25 1 . 4 . 26 1 19 . . 2 . 7 1 9 5 Fast Attach 217 | 6 6 1 6 1 2 . 23 4 3 12 1 20 4 . 1 1 6 1 9 1 7 10 8 4 . 14 . . 5 1 19 . 19 . . 1 . 12 3 3 3 Attach 221 | 1 3 . 7 . . . 14 4 2 38 2 19 . . 2 3 12 1 17 4 1 2 3 14 1 15 . . 3 . 22 . 8 . . 1 . 5 2 8 7 Detach 174 | . 6 1 4 . . . 12 4 2 31 2 23 . . 1 . 9 1 9 3 9 1 6 5 . 11 . . 3 . 15 . 5 . . . . 3 1 3 4 Swap 281 | . 10 . 20 1 . . 13 5 5 7 1 17 . . . . 11 . 27 7 1 1 1 10 . 19 . . 6 . 34 1 31 2 . . 1 20 4 12 14 Drop 328 | . 4 2 29 10 3 . 36 7 12 28 2 16 4 . 1 . 10 1 20 9 1 10 9 16 . 25 1 . 7 1 16 . 20 . . 2 . 10 2 5 9 Fire 716 | 6 94 4 95 14 . 5 135 43 40 2 . 6 . . . . 2 . 17 10 . 72 35 5 . 5 . . 5 . 41 . 41 3 . . . 13 2 17 4 Melee 1062 | . . . 2 . . . 9 57 1 64 . 79 4 . 17 . 76 . 78 23 . . . 29 . 87 8 3 26 4 132 . 144 12 1 . 4 79 18 30 75 Ram . | . . . . . . . . . . . . . . . . . . . . . . . . . . . . . . . . . . . . . . . . . . Kick . | . . . . . . . . . . . . . . . . . . . . . . . . . . . . . . . . . . . . . . . . . . Crush 32 | . 3 4 5 5 . . 12 . 2 . . . . . . . . . . . . . 1 . . . . . . . . . . . . . . . . . . Escape Stasis 90 | . . . . . . . . . . 18 . . . . . . . . . 18 . . . . . 36 . . . . . . . . . . . 18 . . . Rewire 60 | . . . . . . . . 60 . . . . . . . . . . . . . . . . . . . . . . . . . . . . . . . . . Trap 53 | . . . . . . . . . . 2 . 27 . . . . 2 . . 4 . . . 2 . . . . . . . . . . . . . . . . 16 Miscellaneous 8 | . . . . . . . . . . . . . . . . . . . . 6 1 . 1 . . . . . . . . . . . . . . . . . . Route ------- -11/Scrapyard -10/Materials (discovered 4 exits: *Mat x3 / *Min) -10/Mines (discovered 2 exits: *Mat x2) -9/Materials (discovered 4 exits: *Mat x2 / *Min x2) -9/Mines (discovered 3 exits: *Mat x2 / *Exi) -9/Exiles -8/Mines -8/Materials (discovered 3 exits: *Fac x2 / Gar) -8/Garrison (discovered 3 exits: *Mat x3) -8/Materials -7/Factory (discovered 3 exits: *Fac / *Sto / *Low) -7/Waste -7/Factory (discovered 4 exits: *Fac / Sto / *Low x2) -7/Lower Caves -7/Lower Caves -7/Data Miner -6/Proximity Caves -6/Factory (discovered 5 exits: *Fac x4 / *Low) -6/Waste -6/Factory (discovered 8 exits: *Fac x4 / *Low x2 / *Ext x2) -6/Extension (discovered 2 exits: *Fac / *Cet) -6/Cetus -6/Archives (discovered 3 exits: *Fac / *Hub x2) -6/Hub_04(d) -5/Factory (discovered 3 exits: *Fac / *Upp x2) -5/Waste -5/Factory (discovered 6 exits: *Fac x4 / *Upp x2) -5/Upper Caves -5/Upper Caves -5/Warlord -4/Proximity Caves -4/Factory (discovered 4 exits: Res x4) -4/Waste -4/Factory (discovered 7 exits: *Res x4 / *Upp x2 / Arm) -4/Upper Caves -4/Upper Caves (discovered 2 exits: Res / *Zhi) -4/Zhirov -3/Proximity Caves -3/Research (discovered 5 exits: *Res x3 / *Tes x2) -2/Research (discovered 3 exits: *Acc x3) -1/Access (discovered 2 exits: [Sur] / *Com) -1/Command Free Derelict Territories History --------- Turn | Location | Event 42 | -11/Scrapyard | Discovered new exit (range 15) 135 | -11/Scrapyard | Entered Materials 301 | -10/Materials | Build established: Mutant 820 | -10/Materials | Discovered new exit (range 9) 1121 | -10/Materials | Discovered new exit (range 7) 1583 | -10/Materials | Repaired Hvy. Assault Rifle 1708 | -10/Materials | Discovered new exit (range 3) 2263 | -10/Materials | Discovered new exit (range 6) 2328 | -10/Materials | Entered Mines 2725 | -10/Mines | Discovered new exit (range 9) 3356 | -10/Mines | Learned 8 Materials zone layouts 3411 | -10/Mines | Core integrity fell below 50% 3435 | -10/Mines | Discovered new exit (range 6) 3469 | -10/Mines | Entered Materials 3469 | -9/Materials | Evolved 2 slots: Propulsion x1, Utility x1 3470 | -9/Materials | Identified exit to Materials 3579 | -9/Materials | Discovered new exit (range 15) 3681 | -9/Materials | Lost 3 parts (1p1n1w) 4111 | -9/Materials | Discovered exit to Materials (range 8) 4272 | -9/Materials | Discovered new exit (range 16) 4600 | -9/Materials | Core integrity fell below 50% 5469 | -9/Materials | First assault squad dispatched 5475 | -9/Materials | Central database locked down 5625 | -9/Materials | Entered Mines 5636 | -9/Mines | Met a Derelict shopkeep closing up shop 5667 | -9/Mines | Met a Derelict bent on vengeance 5726 | -9/Mines | Learned location of Zion (-6) 5889 | -9/Mines | Met a Derelict who couldn't figure out how to use a Trap Extractor 6019 | -9/Mines | Discovered exit to Materials (range 12) 6640 | -9/Mines | Found a hidden stash of uninstalled traps 7023 | -9/Mines | Build established: Scavenger-Mutant 7030 | -9/Mines | Deemed a non-threat by the Exiles lab entrance 7032 | -9/Mines | Discovered new exit (range 5) 7073 | -9/Mines | Discovered exit to Materials (range 6) 7076 | -9/Mines | Received a Mining Laser from a helpful Derelict 7145 | -9/Mines | Entered Exiles 7145 | -9/Exiles | Accompanied by 1 ally 7205 | -9/Exiles | Met 8R-AWN 7244 | -9/Exiles | Met EX-HEX 7340 | -9/Exiles | Met EX-DEC 7390 | -9/Exiles | Met EX-BIN 7424 | -9/Exiles | Aligned with FarCom system 7426 | -9/Exiles | Given EX-Vault access code 7481 | -9/Exiles | Opened EX-Vault 7506 | -9/Exiles | Found Chronowheel 7665 | -9/Exiles | Warned to stay clear of 0b10 Research branches 7907 | -9/Exiles | Discovered new exit (range 12) 7933 | -9/Exiles | Left Exiles lab with Chronowheel 7933 | -9/Exiles | Entered Mines 8453 | -8/Mines | Discovered exit to Materials (range 5) 8484 | -8/Mines | Entered Materials 8484 | -8/Materials | Evolved 2 slots: Propulsion x1, Utility x1 8698 | -8/Materials | Repaired Imp. Treads 8855 | -8/Materials | Build established: Mutant 9654 | -8/Materials | Repaired Med. Armor Plating 10100 | -8/Materials | Discovered new exit (range 16) 11284 | -8/Materials | First assault squad dispatched 11360 | -8/Materials | Core integrity fell below 50% 11634 | -8/Materials | Discovered new exit (range 16) 11699 | -8/Materials | Identified exit to Garrison 11699 | -8/Materials | Entered Garrison 11853 | -8/Garrison | Spotted B-75 Beast 11855 | -8/Garrison | Spotted B-75 Beast 11930 | -8/Garrison | Build established: Scavenger-Mutant 12015 | -8/Garrison | Triggered checkpoint 12123 | -8/Garrison | Learned Materials security intel 12299 | -8/Garrison | Lost 3 allies 12631 | -8/Garrison | Rescued a captive Derelict 12785 | -8/Garrison | Triggered checkpoint 12835 | -8/Garrison | Triggered checkpoint 12836 | -8/Garrison | Discovered new exit (range 13) 12857 | -8/Garrison | Triggered checkpoint 12962 | -8/Garrison | Attempted to access garrison exit controls, blocked by remote lockdown 13031 | -8/Garrison | Triggered checkpoint 13148 | -8/Garrison | Discovered new exit (range 12) 13170 | -8/Garrison | Attempted to access garrison exit controls, blocked by remote lockdown 13265 | -8/Garrison | Triggered checkpoint 13317 | -8/Garrison | Triggered checkpoint 13339 | -8/Garrison | Triggered checkpoint 13354 | -8/Garrison | Discovered new exit (range 10) 13380 | -8/Garrison | Entered Materials 13380 | -8/Materials | Accompanied by 1 ally 13922 | -8/Materials | Garrison activated, responded to threat 14178 | -8/Materials | Discovered new exit (range 8) 14189 | -8/Materials | Entered Factory 14189 | -7/Factory | Evolved 2 slots: Utility x2 14493 | -7/Factory | Build established: Hacker-Sprinter 14884 | -7/Factory | Fabricated Imp. Hacking Suite? 15202 | -7/Factory | Repaired Lgt. Nuclear Core? 15333 | -7/Factory | Repaired Greatsword 15408 | -7/Factory | Discovered new exit (range 9) 15668 | -7/Factory | Discovered new exit (range 7) 15739 | -7/Factory | Fabricated Cld. VTOL Module (x1) 15839 | -7/Factory | Discovered new exit (range 14) 16165 | -7/Factory | Fabricated Cld. VTOL Module (x1) 16200 | -7/Factory | Fabricated Cld. VTOL Module (x1) 16207 | -7/Factory | Sucked down chute 16207 | -7/Factory | Entered Waste 16207 | -7/Waste | The area was eerily silent 16267 | -7/Waste | A Compactor rumbled back to life 16267 | -7/Waste | Spotted C-40 Crusher 16307 | -7/Waste | Discovered new exit (range 12) 16312 | -7/Waste | Entered Factory 16349 | -7/Factory | Discovered new exit (range 7) 16399 | -7/Factory | Fabricated Cld. VTOL Module? 16538 | -7/Factory | Repaired Adv. Hacking Suite? 16570 | -7/Factory | Fabricated Adv. Hacking Suite? 16597 | -7/Factory | Discovered new exit (range 12) 16614 | -7/Factory | Discovered new exit (range 11) 16627 | -7/Factory | Identified exit to Storage 16627 | -7/Factory | Identified exit to Lower Caves 16780 | -7/Factory | Repaired Fusion Compressor? 16835 | -7/Factory | Fabricated Adv. Hacking Suite? 16935 | -7/Factory | Fabricated Adv. Hacking Suite? 17506 | -7/Factory | Fabricated Cld. VTOL Module? 17581 | -7/Factory | Fabricated Cld. VTOL Module? 17773 | -7/Factory | Repaired Lrn. Missile Launcher? 17881 | -7/Factory | Fabricated Exp. Utility Shielding? 17938 | -7/Factory | Repaired Greatsword 18002 | -7/Factory | Cargo convoy interrupted 18187 | -7/Factory | Entered Lower Caves 18193 | -7/Lower Caves | Met a Warlord Commander 18194 | -7/Lower Caves | Learned location of Warlord (-5) 18195 | -7/Lower Caves | Warlord Commander delivered Encrypted Comm Array 18200 | -7/Lower Caves | Found Encrypted Comm Array 18266 | -7/Lower Caves | Attracted the attention of an 0b10 checkpoint 18279 | -7/Lower Caves | Discovered new exit (range 9) 18281 | -7/Lower Caves | Entered another Lower Caves area 18287 | -7/Lower Caves | Encountered a Warlord checkpoint 18341 | -7/Lower Caves | Discovered new exit (range 7) 18343 | -7/Lower Caves | Entered Data Miner 18343 | -7/Data Miner | Discovered new exit (range 6) 18348 | -7/Data Miner | Met Data Miner 18360 | -7/Data Miner | Learned location of Section 7 (-2) 18360 | -7/Data Miner | Acquired the access code to Warlord's prototype stash 18364 | -7/Data Miner | Received God Mode back door access code from Data Miner 18392 | -7/Data Miner | Activated Chronowheel 18392 | -7/Data Miner | Spacetime reconverged on an earlier point 18395 | -7/Data Miner | Destroyed Data Miner 18399 | -7/Data Miner | Found Ghost Barrier 18401 | -7/Data Miner | Data Conduit disabled 18438 | -7/Data Miner | Entered Proximity Caves 18449 | -6/Proximity Caves | Spotted B-75 Beast 18469 | -6/Proximity Caves | Lost 5 parts (1p3n1w) 18561 | -6/Proximity Caves | Identified exit to Factory 18609 | -6/Proximity Caves | Entered Factory 18609 | -6/Factory | Evolved 2 slots: Utility x2 18746 | -6/Factory | Discovered new exit (range 15) 18839 | -6/Factory | Fabricated Adv. Hacking Suite? 18902 | -6/Factory | Fabricated Adv. Hacking Suite (x1) 18906 | -6/Factory | Build established: Wizard-Sprinter 19040 | -6/Factory | Identified exit to Factory 19327 | -6/Factory | Repaired Cld. VTOL Module? 19450 | -6/Factory | Fabricated Cld. Nuclear Pulse Thruster? 19461 | -6/Factory | Fabricated Fusion Compressor (x2) 19686 | -6/Factory | Fabricated Cld. Nuclear Pulse Thruster (x1) 19909 | -6/Factory | Manually triggered Chute Trap 19909 | -6/Factory | Sucked down chute 19909 | -6/Factory | Entered Waste 19915 | -6/Waste | Spotted C-40 Crusher 19924 | -6/Waste | EMP discharged 19924 | -6/Waste | System corruption reached 10% 19925 | -6/Waste | Spotted C-40 Crusher 19925 | -6/Waste | Spotted C-40 Crusher 19931 | -6/Waste | Spotted C-40 Crusher 19942 | -6/Waste | Spotted C-40 Crusher 19943 | -6/Waste | Spotted C-40 Crusher 19948 | -6/Waste | Discovered new exit (range 14) 19952 | -6/Waste | Entered Factory 19992 | -6/Factory | Spotted B-75 Beast 19998 | -6/Factory | Identified exit to Lower Caves 19998 | -6/Factory | Identified exit to Extension 20059 | -6/Factory | Discovered exit to Factory (range 3) 20263 | -6/Factory | Fabricated Cld. Nuclear Pulse Thruster? 20454 | -6/Factory | Discovered exit to Factory (range 16) 20509 | -6/Factory | Fabricated Mni. Smartbomb Launcher? 20633 | -6/Factory | Fabricated Exp. Utility Shielding (x1) 20719 | -6/Factory | Repaired Structural Scanner 20743 | -6/Factory | Repaired Cld. Nuclear Pulse Thruster 20919 | -6/Factory | Fabricated Combat Drone Bay? 21172 | -6/Factory | Discovered exit to Factory (range 6) 21184 | -6/Factory | Discovered exit to Factory (range 4) 21225 | -6/Factory | Fabricated Combat Drone Bay? 21295 | -6/Factory | Fabricated Cld. Nuclear Pulse Thruster (x1) 21352 | -6/Factory | Search patrols dispatched 21383 | -6/Factory | Entered Extension 21467 | -6/Extension | Rescued a captive Derelict 21469 | -6/Extension | Rescued a captive Derelict 21495 | -6/Extension | Rescued A7 21575 | -6/Extension | Spotted B-75 Beast 21577 | -6/Extension | Spotted B-75 Beast 21588 | -6/Extension | Allies destroyed B-75 Beast 21589 | -6/Extension | Allies destroyed B-75 Beast 21615 | -6/Extension | Lost 3 allies 21619 | -6/Extension | Rescued a captive Derelict 21620 | -6/Extension | Rescued a captive Derelict 21647 | -6/Extension | Build established: Hacker-Sprinter 21650 | -6/Extension | Rescued a captive Derelict 21710 | -6/Extension | Lost 3 allies 21732 | -6/Extension | Discovered exit to Factory (range 10) 21732 | -6/Extension | Discovered new exit (range 6) 21733 | -6/Extension | First assault squad dispatched 21765 | -6/Extension | Destroyed 7 combat bots 21780 | -6/Extension | Entered Cetus 21780 | -6/Cetus | Accompanied by 9 allies (A7) 21785 | -6/Cetus | Acquired a Cetus Manufacturing Module code from A7 21794 | -6/Cetus | Spotted Cetus Guard 21794 | -6/Cetus | Spotted Cetus Guard 21801 | -6/Cetus | Spotted Cetus Guard 21802 | -6/Cetus | Spotted Cetus Guard 21808 | -6/Cetus | Allies destroyed Cetus Guard 21809 | -6/Cetus | Allies destroyed Cetus Guard 21819 | -6/Cetus | Allies destroyed Cetus Guard 21829 | -6/Cetus | Started Cetus Manufacturing Module 21839 | -6/Cetus | Lost 4 allies 21844 | -6/Cetus | Escorted A7 to Cetus Mainframe 21854 | -6/Cetus | Manufactured an Enhanced Grunt 21879 | -6/Cetus | Manufactured an Enhanced Grunt 21904 | -6/Cetus | Manufactured an Enhanced Grunt 21929 | -6/Cetus | Manufactured an Enhanced Grunt 21954 | -6/Cetus | Manufactured an Enhanced Grunt 21979 | -6/Cetus | Discovered new exit (range 16) 22003 | -6/Cetus | Entered Archives 22003 | -6/Archives | Accompanied by 10 allies (A7) 22008 | -6/Archives | Received a hacking code to weaken MAIN.C 22060 | -6/Archives | Discovered exit to Factory (range 14) 22065 | -6/Archives | Lost 3 allies 22086 | -6/Archives | Discovered new exit (range 16) 22108 | -6/Archives | Discovered new exit (range 14) 22174 | -6/Archives | Build established: Hacker-Mutant 22577 | -6/Archives | Entered Hub_04(d) 22577 | -6/Hub_04(d) | Accompanied by 6 allies 22899 | -6/Hub_04(d) | Network Hub disabled 22904 | -6/Hub_04(d) | Network Hub disabled 22914 | -6/Hub_04(d) | Spotted Lightning 22919 | -6/Hub_04(d) | Spotted Lightning 22920 | -6/Hub_04(d) | Spotted Lightning 22936 | -6/Hub_04(d) | Destroyed Lightning 22952 | -6/Hub_04(d) | Allies destroyed Lightning 22956 | -6/Hub_04(d) | Allies destroyed Lightning 22966 | -6/Hub_04(d) | Discovered exit to Factory (range 26) 22981 | -6/Hub_04(d) | Found Prototype Device 22981 | -6/Hub_04(d) | Identified Exp. Phase Shifter 22986 | -6/Hub_04(d) | Lost 8 allies 22987 | -6/Hub_04(d) | Found Prototype Device 22987 | -6/Hub_04(d) | Identified Exp. EM Disruption Field 22997 | -6/Hub_04(d) | Found Prototype Processor 22997 | -6/Hub_04(d) | Identified Exp. Targeting Computer 23129 | -6/Hub_04(d) | Network Hub disabled 23129 | -6/Hub_04(d) | Network Hub disabled 23190 | -6/Hub_04(d) | Entered Factory 23190 | -5/Factory | Evolved 2 slots: Propulsion x1, Utility x1 23255 | -5/Factory | Repaired Exp. Utility Shielding 23283 | -5/Factory | Repaired Centrium Medium Armor Plating? 23300 | -5/Factory | Discovered new exit (range 12) 23447 | -5/Factory | Discovered new exit (range 6) 23494 | -5/Factory | Repaired Mni. Smartbomb Launcher? 23508 | -5/Factory | Build established: Hacker-Sprinter 23562 | -5/Factory | Repaired Cld. VTOL Module? 23576 | -5/Factory | Discovered new exit (range 5) 23751 | -5/Factory | Sucked down chute 23751 | -5/Factory | Entered Waste 23761 | -5/Waste | Spotted C-40 Crusher 23762 | -5/Waste | Spotted C-40 Crusher 23763 | -5/Waste | Spotted C-40 Crusher 23765 | -5/Waste | Spotted C-40 Crusher 23766 | -5/Waste | EMP discharged 23767 | -5/Waste | Spotted C-40 Crusher 23776 | -5/Waste | Spotted C-40 Crusher 23776 | -5/Waste | Discovered new exit (range 14) 23784 | -5/Waste | Entered Factory 23809 | -5/Factory | Identified exit to Upper Caves 24164 | -5/Factory | Discovered new exit (range 7) 24189 | -5/Factory | Identified exit to Factory 24217 | -5/Factory | Repaired Cld. Nuclear Pulse Thruster? 24263 | -5/Factory | Fabricated Imp. Fusion Compressor (x2) 24325 | -5/Factory | Repaired Adv. Datajack? 24389 | -5/Factory | Fabricated Adv. Trap Extractor? 25210 | -5/Factory | Fabricated Plasma Lance? 25312 | -5/Factory | Fabricated Exp. Melee Analysis Suite? 25426 | -5/Factory | Entered Upper Caves 25435 | -5/Upper Caves | Spotted B-75 Beast 25518 | -5/Upper Caves | Discovered new exit (range 11) 25593 | -5/Upper Caves | Entered another Upper Caves area 25599 | -5/Upper Caves | Encountered a Warlord checkpoint 25636 | -5/Upper Caves | Learned Factory terminal intel 25660 | -5/Upper Caves | Attracted the attention of an 0b10 outpost 25662 | -5/Upper Caves | Discovered new exit (range 16) 25666 | -5/Upper Caves | Entered Warlord 25679 | -5/Warlord | System corruption cleaned by Quarantine Array 25818 | -5/Warlord | Visited the Vortex Lab 25835 | -5/Warlord | Warlord's base attacked by MAIN.C 25865 | -5/Warlord | Met Warlord 25869 | -5/Warlord | Opened Warlord's prototype stash 25875 | -5/Warlord | Found Prototype Device 25875 | -5/Warlord | Identified Exp. Cloaking Device 25880 | -5/Warlord | Found Prototype Device 25880 | -5/Warlord | Identified Exp. Focal Shield 25882 | -5/Warlord | Found Prototype Processor 25882 | -5/Warlord | Identified Spectral Analyzer 25886 | -5/Warlord | Found Ghost Barrier 26059 | -5/Warlord | Warlord forces counterattacked 26074 | -5/Warlord | Opened side exit 26079 | -5/Warlord | Discovered new exit (range 10) 26089 | -5/Warlord | Entered Proximity Caves 26092 | -4/Proximity Caves | Spotter reported a threat 26130 | -4/Proximity Caves | Learned Research interactive machine intel 26165 | -4/Proximity Caves | Spotted B-86 Titan 26166 | -4/Proximity Caves | Learned location of Quarantine (-2) 26167 | -4/Proximity Caves | Discovered exit to Factory (range 5) 26168 | -4/Proximity Caves | Entered Factory 26168 | -4/Factory | Evolved 2 slots: Propulsion x1, Utility x1 26169 | -4/Factory | Loaded intel: 26 terminal locations 26199 | -4/Factory | Identified exit to Research 26477 | -4/Factory | Repaired Cld. Nuclear Pulse Thruster? 26611 | -4/Factory | Repaired Cld. Nuclear Pulse Thruster 26658 | -4/Factory | Repaired Cld. Nuclear Pulse Thruster? 26699 | -4/Factory | Repaired Plasma Lance 26880 | -4/Factory | Build established: Wizard-Sprinter 27105 | -4/Factory | Repaired Centrium Medium Armor Plating? 27127 | -4/Factory | Repaired Mni. Smartbomb Launcher? 27168 | -4/Factory | Search patrols dispatched 27200 | -4/Factory | Repaired Electron Diverter? 27371 | -4/Factory | Fabricated Quantum Shading Machine? 27418 | -4/Factory | Search patrols dispatched 27525 | -4/Factory | Repaired Electron Diverter? 27535 | -4/Factory | Repaired Imp. Fusion Compressor? 27699 | -4/Factory | Repaired Cld. Nuclear Pulse Thruster? 27741 | -4/Factory | Repaired Imp. Fusion Compressor 27918 | -4/Factory | Search patrols dispatched 28250 | -4/Factory | Fabricated Exp. Utility Shielding? 28596 | -4/Factory | Fabricated Exp. Melee Analysis Suite? 28948 | -4/Factory | Fabricated Exp. Melee Analysis Suite? 28968 | -4/Factory | Crushed by falling debris 29077 | -4/Factory | Manually triggered Chute Trap 29077 | -4/Factory | Sucked down chute 29077 | -4/Factory | Entered Waste 29081 | -4/Waste | Spotted C-40 Crusher 29085 | -4/Waste | Spotted C-40 Crusher 29085 | -4/Waste | Spotted C-40 Crusher 29092 | -4/Waste | EMP discharged 29101 | -4/Waste | Spotted C-40 Crusher 29103 | -4/Waste | Discovered new exit (range 16) 29104 | -4/Waste | Spotted C-40 Crusher 29107 | -4/Waste | Entered Factory 29177 | -4/Factory | Identified exit to Upper Caves 29177 | -4/Factory | Identified exit to Armory 29480 | -4/Factory | Fabricated Plasma Lance (x1) 29600 | -4/Factory | Repaired Exp. Utility Shielding 29688 | -4/Factory | Spotted B-86 Titan 29868 | -4/Factory | Repaired Electron Diverter? 30063 | -4/Factory | Repaired Field Propulsion Array 30224 | -4/Factory | Core integrity fell below 50% 30516 | -4/Factory | Fabricated Adv. Force Booster? 30622 | -4/Factory | Fabricated Plasma Lance (x1) 30676 | -4/Factory | Fabricated Exp. Power Amplifier? 31059 | -4/Factory | Repaired Cld. Nuclear Pulse Thruster? 31264 | -4/Factory | Spotted B-86 Titan 31276 | -4/Factory | Repaired Plasma Lance? 31328 | -4/Factory | Repaired Imp. Fusion Compressor 31557 | -4/Factory | Repaired Electron Diverter? 31629 | -4/Factory | Repaired Centrium Medium Armor Plating? 31737 | -4/Factory | Repaired Exp. Utility Shielding 31782 | -4/Factory | Repaired Mni. Smartbomb Launcher 31882 | -4/Factory | Entered Upper Caves 31957 | -4/Upper Caves | Spotted B-86 Titan 31994 | -4/Upper Caves | Learned Research security intel 32050 | -4/Upper Caves | Discovered new exit (range 11) 32050 | -4/Upper Caves | Learned Research trap positions 32060 | -4/Upper Caves | Entered another Upper Caves area 32062 | -4/Upper Caves | Attracted the attention of an 0b10 checkpoint 32076 | -4/Upper Caves | Encountered a Warlord checkpoint 32132 | -4/Upper Caves | Discovered new exit (range 15) 32135 | -4/Upper Caves | Entered Zhirov 32135 | -4/Zhirov | Discovered new exit (range 3) 32141 | -4/Zhirov | Met Zhirov 32146 | -4/Zhirov | Learned location of Command (-1) 32148 | -4/Zhirov | Zhirov requested help retrieving the SGEMP Prototype 32154 | -4/Zhirov | Found Alien Artifact 32159 | -4/Zhirov | Found Alien Artifact 32159 | -4/Zhirov | Identified Integrated Reactor 32159 | -4/Zhirov | Installed Integrated Reactor, increased core energy generation (+10) 32175 | -4/Zhirov | Entered Proximity Caves 32261 | -3/Proximity Caves | Attracted the attention of an 0b10 checkpoint 32273 | -3/Proximity Caves | Discovered exit to Research (range 11) 32276 | -3/Proximity Caves | Entered Research 32276 | -3/Research | Evolved 2 slots: Utility x2 32277 | -3/Research | Loaded intel: 89 trap records 32279 | -3/Research | Loaded intel: 42 interactive machine locations 32334 | -3/Research | Identified exit to Research 32668 | -3/Research | Discovered new exit (range 5) 32782 | -3/Research | Repaired Imp. Fusion Compressor 32823 | -3/Research | Repaired Exp. Utility Shielding? 32856 | -3/Research | Identified exit to Testing 32864 | -3/Research | Adv. Hacking Suite fried by hacking feedback 32989 | -3/Research | Repaired Centrium Medium Armor Plating? 33070 | -3/Research | Fabricated Femtoactuators? 33291 | -3/Research | Spotted B-86 Titan 33517 | -3/Research | Fabricated Adv. Quantum Shading Machine (x1) 33664 | -3/Research | Entered another Research area 33664 | -2/Research | Warlord forces began assault on 0b10 33664 | -2/Research | Evolved 2 slots: Propulsion x1, Utility x1 33669 | -2/Research | Identified exit to Access 33774 | -2/Research | Research machine network offline 33866 | -2/Research | Met up with Warlord 33925 | -2/Research | Entered Access 33925 | -1/Access | Evolved 2 slots: Propulsion x1, Utility x1 34011 | -1/Access | Spotted B-99 Colossus 34122 | -1/Access | Identified exit to Command 34184 | -1/Access | Central database locked down 34230 | -1/Access | Fabricated Exp. Armor Integrity Analyzer? 34290 | -1/Access | Fabricated Adv. Reaction Control System (x1) 34336 | -1/Access | Fabricated Cld. Nuclear Pulse Thruster (x1) 34454 | -1/Access | Discovered new exit (range 16) 34456 | -1/Access | Fabricated Centrium Medium Armor Plating? 34533 | -1/Access | Fabricated Lrg. Storage Unit (x1) 34618 | -1/Access | Spotted B-99 Colossus 34672 | -1/Access | Entered Command 34834 | -1/Command | Build established: Hacker-Sprinter 35146 | -1/Command | Repaired Centrium Medium Armor Plating? 35169 | -1/Command | Spotted M Guard 35169 | -1/Command | Spotted M Guard 35169 | -1/Command | Spotted Combat Programmer 35189 | -1/Command | Spotted Combat Programmer 35226 | -1/Command | System corruption reached 10% 35227 | -1/Command | Destroyed Combat Programmer 35296 | -1/Command | All MAIN.C guards destroyed 35467 | -1/Command | Disengaged cave seal 35467 | -1/Command | Derelicts emerged from the dark tunnel 35467 | -1/Command | Welcomed Warlord to Command 35500 | -1/Command | Disengaged cave seal 35500 | -1/Command | Derelicts emerged from the dark tunnel 35670 | -1/Command | Lost 5 allies 35704 | -1/Command | Spotted XM-IOM(L) 35726 | -1/Command | Spotted B-99 Colossus 35811 | -1/Command | Warlord commented on Warlord statues 35847 | -1/Command | Met MAIN.C 35850 | -1/Command | Hacked MAIN.C using A7's code 35851 | -1/Command | 0b10 Conduit disabled 35862 | -1/Command | Destroyed MAIN.C Shell 35863 | -1/Command | MAIN.C activated Command garrisons 35882 | *** | Establishing Free Derelict Territories! Last Messages --------------- You don't stand a chance against what's coming. 35863_ ALERT: All Command garrisons activated. 35864_ System corrupted: Heat flow error (+166). 35865_ MAIN.C reaction time slowed by virus. 35868_ Exp. Utility Shielding destroyed. 35868_ Knocked back. 35873_ MAIN.C suffers critical hit (Impale). Warlord: Not so powerful now, are you, MAIN.C! 35876_ MAIN.C reaction time slowed by virus. 35880_ System corrupted: Heat flow error (+287). 35880_ MAIN.C reaction time slowed by virus. 35880_ MAIN.C suffers critical hit (Impale). 35881_ MAIN.C: "I hope you know you're still going to DIE HERE WITH ME!" [Achievement: void main()] 35881_ MAIN.C destroyed. 35881_ Blast Slug penetrates 0b10 Conduit. Warlord: Victory! Sure there's still lots to do, but without MAIN.C at the helm 0b10 doesn't stand a chance. We've got this... Map ----- +----------------------------------------------------+ | ?????????????????????????????????????????????????? | | ?????????????????????????????????????????????????? | | ?????????????????????????????????????????????????? | | ?????????????????????????????????????????????????? | | ?????????????????????????????????????????????????? | | ?????????????????????????????????????????????????? | | ?????????????????????????????????????????????????? | | ?????????????????????????????????????????????????? | | ?????????????????????????????????????????????????? | | ?????????????????????????????????????????????????? | | ?????????????????????????????????????????????????? | | ?????????????????????????????????????????????????? | | ?????????????????????????????????????????????????? | | ?????????????????????????????????????????????????? | | ?????????????????????????????????????????????????? | | ???????????????????###############???????????????? | | ???????????????"?"" """" #???????????????? | | ??????????????? "" #???????????????? | | ???????????????"" "" ################# | | ???????????????"""""""" + | | ??????????????? " """ + | | ??????????????? """ " W + | | ????????????"" """" " ################# | | ???????????# " """" #???????????????? | | ???????????# " *%= #???????????????? | | ???????????# " !=[ @ ""#???????????????? | | ???????????#"""""""""!%!%[" """""#???????????????? | | ????????????"" =!] """"""""#???????????????? | | ???????????? """"""""""#???????????????? | | ???????????# " " " " #???????????????? | | ???????????# " " " " #???????????????? | | ???????????" " " " """" " #???????????????? | | ???????????" """ " " """" #???????????????? | | ???????????" " " " ??????????????????????? | | ???????????# """""""""" ?????????????????????? | | ???????????? " ?"" " ""??????????????????????? | | ???????????? ??????? ? ?????????????????????????? | | ????????????????????##???????????????????????????? | | ?????????????????????????????????????????????????? | | ?????????????????????????????????????????????????? | | ?????????????????????????????????????????????????? | | ?????????????????????????????????????????????????? | | ?????????????????????????????????????????????????? | | ?????????????????????????????????????????????????? | | ?????????????????????????????????????????????????? | | ?????????????????????????????????????????????????? | | ?????????????????????????????????????????????????? | | ?????????????????????????????????????????????????? | | ?????????????????????????????????????????????????? | | ?????????????????????????????????????????????????? | +----------------------------------------------------+ Best States ------------- Heat Dissipation 72 Energy Generation 57 Energy Capacity 350 Matter Stores 300 Matter Capacity 300 Sight Range 16 Terrain Scan Density 10 Power Amplification 40 Additional Mass Support 25 Corruption Block 20 Armor Coverage 1650 Utility Shielding 90 Weapon Cycling 15 Melee Speed Boost 50 Phase Shifting 20 Evasion (%) 97 Targeting Accuracy 8 Melee Accuracy 36 Core Analysis 6 Armor Integrity Analysis 50 Recoil Reduction 4 Force Boost 40 Salvage Targeting 1 Offensive Hacking 70 Defensive Hacking 30 Authchip Count 5 Trap Extractor Capacity 8 Item Schematics ----------------- Lrg. Storage Unit | -10/Materials | Hacked Hcp. Storage Unit | -10/Materials | Hacked Trap Extractor | -9/Materials | Hacked Transport Network Coupler | -9/Materials | Hacked Lgt. Treads | -9/Materials | Scanalyzed Hacking Suite | -8/Materials | Hacked Cesium-ion Thruster | -8/Materials | Scanalyzed Cld. VTOL Module | -7/Factory | Hacked Imp. Hacking Suite | -7/Factory | Hacked Adv. Hacking Suite | -7/Factory | Hacked Core Analyzer | -7/Factory | Scanalyzed Exp. Utility Shielding | -7/Factory | Hacked Huge Storage Unit | -7/Factory | Hacked Combat Drone Bay | -7/Data Miner | Free Lgt. Regenerative Plating | -7/Data Miner | Free Cld. Aerolev Unit | -7/Data Miner | Free Gravity Neutralizer | -7/Data Miner | Free Imp. Heavy Machine Gun | -7/Data Miner | Free Gyrokinetic Inverter | -7/Data Miner | Free Imp. Thermal Shield | -7/Data Miner | Free Mass Driver | -7/Data Miner | Free Mic. Fission Core | -7/Data Miner | Free Imp. System Shield | -7/Data Miner | Free Imp. Heavy Treads | -7/Data Miner | Free Fusion Compressor | -6/Factory | Hacked Cld. Nuclear Pulse Thruster | -6/Factory | Hacked Mni. Smartbomb Launcher | -6/Factory | Hacked Imp. Fusion Compressor | -6/Factory | Hacked Adv. Reaction Control System | -6/Factory | Hacked Adv. Trap Extractor | -6/Factory | Hacked Imp. Force Booster | -6/Factory | Hacked Centrium Medium Armor Plating | -5/Factory | Scanalyzed Exp. Melee Analysis Suite | -5/Factory | Hacked Plasma Lance | -5/Factory | Hacked Exp. Hacking Suite | -5/Factory | Hacked Nanoactuators | -5/Factory | Hacked Adv. Remote Datajack | -5/Factory | Hacked Exp. System Shield | -5/Factory | Hacked Quantum Shading Machine | -4/Factory | Hacked Graphene Brace | -4/Factory | Hacked Adv. Force Booster | -4/Factory | Hacked Exp. Power Amplifier | -4/Factory | Hacked Assault Drone Bay | -4/Zhirov | Free Exp. Heat Sink | -4/Zhirov | Free Exp. Optical Array | -4/Zhirov | Free Imp. Arc Thrower | -4/Zhirov | Free Femtoactuators | -3/Research | Hacked Adv. Quantum Shading Machine | -3/Research | Hacked Exp. Armor Integrity Analyzer | -1/Access | Hacked Enh. Nova Cannon | -1/Access | Hacked Robot Schematics ------------------ M-14 Sweeper | -7/Data Miner | Free A-15 Conveyor | -7/Data Miner | Free G-47 Trooper | -7/Data Miner | Free G-50 Soldier | -7/Data Miner | Free B-60 Warrior | -7/Data Miner | Free W-44 Eye | -4/Factory | Hacked Fabricated ------------ Imp. Hacking Suite | x1 | -7/Factory | Authchip Cld. VTOL Module | x1 | -7/Factory | Authchip Cld. VTOL Module | x1 | -7/Factory | Authchip Cld. VTOL Module | x1 | -7/Factory | Authchip Cld. VTOL Module | x1 | -7/Factory | Authchip Adv. Hacking Suite | x1 | -7/Factory | Authchip Adv. Hacking Suite | x1 | -7/Factory | Authchip Adv. Hacking Suite | x1 | -7/Factory | Authchip Cld. VTOL Module | x1 | -7/Factory | Authchip Cld. VTOL Module | x1 | -7/Factory | Authchip Exp. Utility Shielding | x1 | -7/Factory Adv. Hacking Suite | x1 | -6/Factory | Authchip Adv. Hacking Suite | x1 | -6/Factory | Authchip Cld. Nuclear Pulse Thruster | x1 | -6/Factory | Authchip Fusion Compressor | x2 | -6/Factory | Authchip Cld. Nuclear Pulse Thruster | x1 | -6/Factory | Authchip Cld. Nuclear Pulse Thruster | x1 | -6/Factory | Authchip Mni. Smartbomb Launcher | x1 | -6/Factory | Authchip Exp. Utility Shielding | x1 | -6/Factory | Authchip Combat Drone Bay | x1 | -6/Factory | Authchip Combat Drone Bay | x1 | -6/Factory | Authchip Cld. Nuclear Pulse Thruster | x1 | -6/Factory | Authchip Imp. Fusion Compressor | x2 | -5/Factory | Authchip Adv. Trap Extractor | x2 | -5/Factory | Authchip Plasma Lance | x1 | -5/Factory | Authchip Exp. Melee Analysis Suite | x1 | -5/Factory | Authchip Quantum Shading Machine | x1 | -4/Factory | Authchip Exp. Utility Shielding | x1 | -4/Factory | Authchip Exp. Melee Analysis Suite | x1 | -4/Factory | Authchip Exp. Melee Analysis Suite | x1 | -4/Factory | Authchip Plasma Lance | x1 | -4/Factory | Authchip Adv. Force Booster | x2 | -4/Factory | Authchip Plasma Lance | x1 | -4/Factory | Authchip Exp. Power Amplifier | x1 | -4/Factory | Authchip Femtoactuators | x1 | -3/Research | Authchip Adv. Quantum Shading Machine | x1 | -3/Research | Authchip Exp. Armor Integrity Analyzer | x1 | -1/Access | Authchip Adv. Reaction Control System | x1 | -1/Access | Authchip Cld. Nuclear Pulse Thruster | x1 | -1/Access | Authchip Centrium Medium Armor Plating | x1 | -1/Access | Authchip Lrg. Storage Unit | x1 | -1/Access Alien Tech Used ----------------- Integrated Reactor Achievements -------------- 404 Poison In The Code void main() Challenges ------------ None Game ------ Seed BarrageScrapImmobilizer Manual? 0 Play Time 09:57:34 Cumulative 114.8 hours Start 2024.04.14 @ 11:51:11 End 2024.04.21 @ 16:58:15 Sessions 59 Manual Loads 0 Difficulty Rogue Special Mode None Game No. 65 Rogue 65 Adventurer 0 Explorer 0 Win Type 7 Total 4 Types 2/0/0/1/0/0/0/1/0 Lore% 78 Gallery% 69 Achievement% 60 Wizard Run 0 Options --------- Layout 0 ASCII 0 Keyboard 1 Movement Numpad Keybinds 0 Fullscreen 1 Font 18/SmallcapsGlow Map View 76x50 Zoom Use 0% Tactical HUD 1 Map Filters NONE Filters NONE Steam 1 RUN: 6146897a-c27a-498e-8824-c640260bdc4f